Cogmind - Beta 15 @@@ ROGUE MODE // 2025.05.16 @ 23:03:02 Player: szymekc Result: Escaped singularity! Performance ------------- Evolutions (9) 4500 Regions Visited (27) 5400 Robots Destroyed (684) 3420 Value Destroyed (39630) 39630 Prototype IDs (367) 7340 Alien Tech Used (8) 1600 Bonus (52992) 52992 TOTAL SCORE: 114882 Bonus ------- Triggered High Security 500 High Alert Combat Kills 13207 Follower Combat Kills 3105 Network Hubs Disabled 400 Registered with UFD 300 Met Optimus in HQ 500 Met Zhirov 300 Built Enhanced Grunts 300 Met R17 at Cetus 500 Found Hidden Lab 3000 Scanned by Researcher 500 Destroyed Superfortress 15000 Met Optimus at Protoforge 1000 Destroyed MAIN.C Guards 500 Met MAIN.C 5000 Destroyed MAIN.C Shell 5000 Destroyed MAIN.C 10000 Met Architect 300 Destroyed A8 300 Destroyed A6 400 Destroyed A5 500 Destroyed A2 1000 Destroyed Architect 15000 Win 3000 Friendly Fire -26620 Cogmind --------- Core Integrity 798/1600 Matter 177/300 Energy 98/100 System Corruption 1% Temperature Cool (0) Movement Core (50) Location Near Former Tau Ceti IV Parts ------- > --- POWER (3) -------- (None) > --- PROPULSION (4) --- (None) > --- UTILITY (11) ----- (None) > --- WEAPON (8) ------- (None) > --- INVENTORY (5) ---- Vortex Chain Reactor Sigix Broadsword Peak State ------------ > --- POWER ------------ Hybrid Graviton Reactor Hybrid Graviton Reactor Concept Zero-point Core > --- PROPULSION ------- Biometal Heavy Treads Experimental Heavy Siege Treads > --- UTILITY ---------- Experimental Heat Sink Concept Thermoelectric Network Concept Antigrav Storage Unit Experimental Active Sensor Suite Concept Cloak Mesh Concept Cloak Mesh Medium Regenerative Plating Concept Energy Mantle Concept Navigation Harness > --- WEAPON ----------- Phase Gun Dispersion Rifle Enhanced Quantum Rifle Enhanced Quantum Rifle HERF Cannon Helical Railgun Sigix Broadsword > --- INVENTORY -------- Armored Heavy Treads Advanced Heavy Siege Treads Concept Thermoelectric Network Enhanced Optical Array Concept Networked Targeting System Concept Recoil Nullifier Graphene Brace Concept Energy Mantle Improved Point Defense System Concept Antimissile System Concept Impact Drone Bay Concept Impact Drone Bay Transdimensional Reconstructor HERF Cannon Overtuned Railgun Heavy Linear Accelerator Overtuned Linear Accelerator Gamma Bomb Array Tactical Quantum Warhead Advanced Remote Datajack [Rating: 299] Favorites ----------- Power Hybrid Graviton Reactor Engine Ion Engine Power Core Neutrino Core Reactor Hybrid Graviton Reactor Propulsion Overtuned Huge Scrapsphere Treads Light Treads Leg Experimental Myomer Leg Wheel Overtuned Huge Scrapsphere Hover Unit Gravmag System Flight Unit VTOL Module Utility Experimental Core Analyzer Device Concept Thermoelectric Network Storage Huge Storage Unit Processor Experimental Core Analyzer Hackware Deep Network Scanner Protection Medium Regenerative Plating Weapon Cooled Phase Gun Energy Gun Cooled Phase Gun Energy Cannon Enhanced Nova Cannon Ballistic Gun Overtuned Coil Gun Ballistic Cannon Graviton Cannon Launcher Gamma Bomb Array Special Weapon CPS Tube Impact Weapon Heavy Hammer Slashing Weapon Sigix Broadsword Special Melee Weapon Datajack Build | -11 -10 -10 -9 -9 -9 -9 -6 -6 -6 -6 -6 -5 -5 -5 -5 -4 -4 -4 -4 -3 -3 -2 -2 -2 -1 -1 -1 ------- Run | Yrd Mat Min Mat Sto Rec Scr Fac Ext Cet Arc Hub Fac Upp Upp Zhi Pro Fac Arm Lab Res Tes Res Qua Frg Acc Com Ac0 Slots Evolved 18 | . . . 2 . . . 6 . . . . 2 . . . . 2 . . 2 . 2 . . 2 . . Power 1 | . . . . . . . 1 . . . . . . . . . . . . . . . . . . . . Propulsion 2 | . . . 1 . . . 1 . . . . . . . . . . . . . . . . . . . . Utility 9 | . . . 1 . . . 3 . . . . 2 . . . . 1 . . . . . . . 2 . . Weapon 6 | . . . . . . . 1 . . . . . . . . . 1 . . 2 . 2 . . . . . Parts Attached 445 | 8 10 3 14 22 6 10 27 10 9 5 10 46 2 2 2 9 7 30 4 8 18 14 19 90 10 37 13 Power 60 | 1 1 1 1 5 . 2 7 2 2 . 1 8 . . 1 1 1 2 . 2 5 1 4 11 . 1 . Engine 13 | 1 1 . . 5 . . 4 1 . . . 1 . . . . . . . . . . . . . . . Core 16 | . . 1 1 . . 2 2 . . . . 7 . . . 1 . . . . . . . 2 . . . Reactor 31 | . . . . . . . 1 1 2 . 1 . . . 1 . 1 2 . 2 5 1 4 9 . 1 . Propulsion 69 | 2 2 . 5 6 2 3 1 2 1 . 1 11 . . . 1 . 7 . 2 2 6 6 4 2 3 . Treads 32 | 2 . . 1 6 2 2 . 2 1 . 1 . . . . . . . . . . 4 6 2 2 1 . Leg 17 | . . . 3 . . . . . . . . . . . . 1 . 7 . 2 2 2 . . . . . Wheel 12 | . 2 . 1 . . 1 1 . . . . 3 . . . . . . . . . . . 2 . 2 . Hover 2 | . . . . . . . . . . . . 2 . . . . . . . . . . . . . . . Flight 6 | . . . . . . . . . . . . 6 . . . . . . . . . . . . . . . Utility 161 | 3 2 2 2 1 2 3 10 3 5 2 4 19 1 2 1 6 1 9 1 2 3 6 6 40 1 16 8 Device 95 | 3 1 . . . . 1 6 2 2 2 2 6 1 2 1 4 . 5 . 1 2 4 4 30 . 11 5 Storage 12 | . 1 1 . . 1 . . . 1 . 1 2 . . . . . 1 . . . 1 1 1 . 1 . Processor 32 | . . . 1 . . 2 2 1 . . . 6 . . . 1 1 3 . . 1 1 1 7 . 3 2 Hackware 9 | . . . . . . . 1 . . . 1 4 . . . 1 . . . 1 . . . . 1 . . Protection 13 | . . 1 1 1 1 . 1 . 2 . . 1 . . . . . . 1 . . . . 2 . 1 1 Artifact . | . . . . . . . . . . . . . . . . . . . . . . . . . . . . Weapon 155 | 2 5 . 6 10 2 2 9 3 1 3 4 8 1 . . 1 5 12 3 2 8 1 3 35 7 17 5 Energy Gun 41 | . 1 . 3 6 . 1 . . . . . 1 . . . . . 6 . 1 6 1 2 3 4 5 1 Energy Cannon 42 | . . . . 1 1 . 1 . . . . 1 1 . . . 1 2 3 1 1 . . 18 3 7 1 Ballistic Gun 47 | 2 4 . 1 2 1 1 7 3 . 3 2 5 . . . . 4 4 . . . . . 6 . 1 1 Ballistic Cannon 12 | . . . . . . . . . . . . . . . . . . . . . 1 . . 6 . 3 2 Launcher 4 | . . . 2 . . . . . . . 1 . . . . . . . . . . . . . . 1 . Special Weapon 4 | . . . . . . . . . 1 . 1 . . . . . . . . . . . . 2 . . . Impact Weapon 3 | . . . . 1 . . . . . . . 1 . . . 1 . . . . . . . . . . . Slashing Weapon 1 | . . . . . . . . . . . . . . . . . . . . . . . 1 . . . . Piercing Weapon . | . . . . . . . . . . . . . . . . . . . . . . . . . . . . Special Melee Weapon 1 | . . . . . . . 1 . . . . . . . . . . . . . . . . . . . . Unidentified Prototypes 76 | . . . 2 3 . . 2 . 5 1 . 2 . . 3 6 . 9 5 2 7 . 9 17 . . 3 Corrupted Parts 5 | . . . . . . . . . . 1 2 . . . . . . . . . . . . . . 2 . System Corruption 31 | . . . . . . . . . . 5 13 . . . . . . . . . . . . . . 13 . Parts Lost 73 | . 5 . . 2 . . . . . . 11 9 . . . . 8 3 . . . 1 2 18 4 3 7 Power 8 | . . . . 2 . . . . . . 2 1 . . . . 1 1 . . . . 1 . . . . Propulsion 8 | . 2 . . . . . . . . . 2 3 . . . . . 1 . . . . . . . . . Utility 21 | . 1 . . . . . . . . . 4 2 . . . . 2 1 . . . 1 . 4 1 2 3 Weapon 36 | . 2 . . . . . . . . . 3 3 . . . . 5 . . . . . 1 14 3 1 4 Highest Loss Streak 11 | . 3 . . 1 . . . . . . 11 5 . . . . 6 1 . . . 1 1 4 2 1 3 To Critical Strikes 1 | . . . . . . . . . . . . . . . . . . 1 . . . . . . . . . Average Backups 18 | . 7 15 19 19 20 21 23 22 23 23 23 6 13 14 14 14 14 15 15 23 23 19 16 17 17 20 19 Power . | . . 1 1 . . . . . 1 2 1 1 3 3 3 1 1 . . . . . . . . 1 1 Propulsion 1 | . . . 1 2 5 3 . 1 1 1 . . 2 2 1 1 2 2 1 2 1 . . . 2 1 1 Utility 8 | . 2 4 9 8 7 9 9 9 7 8 9 2 7 8 8 8 8 7 6 12 11 9 7 9 9 9 11 Weapon 5 | . 4 9 7 8 7 6 9 9 10 10 10 . 1 1 1 1 1 5 7 7 9 7 6 3 3 5 4 Tool/Special . | . . . . . . . . . . . . . . . . . . . . . . . . . . . . Unused Backups 109 | . . . 3 8 . 8 13 . 6 1 8 5 . . . 2 1 11 2 2 4 2 6 10 . 9 8 Power 10 | . . . . . . . 1 . . . 1 1 . . . 1 . . . . . . . . . 5 1 Propulsion 19 | . . . . . . 5 . . 1 . . 1 . . . . 1 4 . . 1 1 2 . . 1 2 Utility 40 | . . . . 2 . 2 5 . 4 . 5 2 . . . 1 . . . 2 2 . 3 6 . 3 3 Weapon 36 | . . . 3 6 . 1 7 . 1 1 1 1 . . . . . 6 1 . 1 1 1 3 . . 2 Tool/Special 4 | . . . . . . . . . . . 1 . . . . . . 1 1 . . . . 1 . . . Average Slot Usage (%) 85 | . 92 100 99 99 100 87 79 80 80 79 78 58 82 82 67 81 81 94 94 96 99 96 87 81 76 83 83 Engine 1 | . 14 6 . 10 11 5 1 6 1 . . 1 . . . . . . . . . . . . . . . Core 2 | . . 7 11 . . 5 7 1 . . . 5 11 11 9 10 8 . . . . . . . 3 . . Reactor 5 | . . . . . . . 3 3 11 13 12 . . . 1 . 1 9 10 10 13 12 11 8 7 6 6 Treads 8 | . 24 . 4 29 33 27 . . 6 6 5 . . . . . . . . . . 6 8 5 . 6 6 Leg 2 | . . . 17 1 . . . . . . . . . . . . . 15 20 18 18 6 . . . . . Wheel 3 | . 1 28 11 1 . 2 12 12 6 6 5 5 11 11 11 11 10 1 . . . . . 2 6 . . Device 13 | . 12 4 . . . 3 13 16 13 17 12 6 11 15 16 16 15 12 12 8 9 7 8 14 25 25 19 Storage 5 | . 9 14 11 11 11 11 6 6 6 6 5 2 5 5 5 5 5 5 5 4 4 4 4 4 3 3 2 Processor 9 | . . . 10 11 11 7 8 9 6 6 5 6 17 12 11 11 13 22 20 16 13 15 18 12 . 4 8 Protection 4 | . . 9 11 11 11 7 3 . 5 1 5 4 5 5 5 5 5 5 5 5 8 4 3 . . 2 4 Energy Gun 8 | . 5 . 16 20 1 1 . 2 4 3 4 . . . . . . 7 17 26 26 32 27 8 12 3 . Energy Cannon 7 | . . . . . 10 5 . . . . . . . 3 . . 6 . 2 . . . . 17 5 18 18 Ballistic Gun 6 | . 22 28 5 . 10 9 16 16 13 16 14 6 16 13 2 17 10 12 . . . . . 1 . . . Ballistic Cannon 1 | . . . . . . . . . . . . . . . . . . . . . . . . 1 2 3 10 Peak Build Rating 299 | 9 13 15 23 24 21 47 86 84 106 109 111 93 93 94 99 107 118 158 161 194 205 213 238 266 296 299 294 Average Rating 160 | 6 8 13 21 20 20 27 78 82 101 105 104 55 92 93 80 101 114 144 150 184 195 206 214 232 276 283 286 On Entrance 109 | . 9 13 15 23 21 20 46 81 81 106 109 3 92 93 94 99 104 102 158 161 194 198 206 238 237 296 280 Naked Turns 24 | . . . . . . . . . . . 5 13 . . . . . . . . . . . . . . 6 Heaviest Build 240 | 10 33 54 59 61 105 105 131 125 149 150 150 75 81 85 83 85 95 167 172 206 209 221 163 201 153 227 240 Greatest Support 200 | 40 40 30 10 60 60 60 40 40 20 20 80 48 40 40 40 40 40 110 110 110 120 150 180 200 175 185 185 Greatest Overweight (x) 11 | . 10 5 5 5 1 5 3 6 7 7 7 3 2 2 2 2 2 2 1 1 1 2 1 9 7 11 2 Average Overweight (x) 1 | . . 1 5 . . 2 2 2 6 6 6 . 1 1 1 1 1 . . 1 1 . . 1 2 . . Largest Inventory Capacity 25 | 5 15 20 20 20 25 25 25 25 25 25 25 15 15 15 15 15 15 25 25 25 25 25 20 25 25 25 25 Average Capacity 21 | 5 12 15 20 20 21 25 25 25 25 25 24 10 15 15 15 15 15 16 20 25 25 22 20 21 25 25 24 Most Carried 25 | 2 14 19 20 20 20 25 25 25 25 25 25 15 15 15 15 15 15 24 25 25 25 25 20 25 23 25 25 Average Carried 20 | . 7 15 19 19 19 22 24 22 24 24 24 6 14 15 14 14 14 15 16 24 24 21 19 20 20 23 23 Final Capacity 25 | 5 15 20 20 20 25 25 25 25 25 25 5 15 15 15 15 15 15 25 25 25 25 20 20 25 25 25 5 Final Carried 25 | 1 14 19 20 20 20 25 25 25 25 25 5 14 15 15 15 15 15 24 25 25 25 20 20 17 22 25 4 Class Distribution -------------------- 16% | Scavenger-Scrapper 13% | Pyromaniac-Executioner 11% | Commander-Mutant 9% | Hacker-Executioner 7% | Scavenger-Executioner 6% | Commander-Scrapper 6% | Scrapper 6% | Mutant 5% | Executioner 3% | Scavenger-Assassin 3% | Gunner Dominant Class ---------------- Mutant | -10/Materials Mutant | -10/Mines Mutant | -9/Materials Commander-Mutant | -9/Storage Commander-Mutant | -9/Recycling Commander-Mutant | -9/Scraptown Scrapper | -6/Factory Commander-Scrapper | -6/Extension Commander-Scrapper | -6/Cetus Commander-Scrapper | -6/Archives Scavenger-Scrapper | -6/Hub_04(d) Hacker-Mutant | -5/Factory Scavenger-Scrapper | -5/Upper Caves Scavenger-Scrapper | -5/Upper Caves Scavenger-Scrapper | -5/Zhirov Scavenger-Scrapper | -4/Proximity Caves Scavenger-Scrapper | -4/Factory Gunner | -4/Armory Gunner | -4/Lab Hacker-Executioner | -3/Research Hacker-Executioner | -3/Testing Hacker-Executioner | -2/Research Assassin | -2/Quarantine Scavenger-Scrapper | -2/Protoforge Scavenger-Assassin | -1/Access Pyromaniac-Executioner | -1/Command Scavenger-Executioner | -1/Access_0 Resources | -11 -10 -10 -9 -9 -9 -9 -6 -6 -6 -6 -6 -5 -5 -5 -5 -4 -4 -4 -4 -3 -3 -2 -2 -2 -1 -1 -1 ----------- Run | Yrd Mat Min Mat Sto Rec Scr Fac Ext Cet Arc Hub Fac Upp Upp Zhi Pro Fac Arm Lab Res Tes Res Qua Frg Acc Com Ac0 Matter Collected 17445 | 316 426 166 367 279 72 90 2120 880 296 328 296 849 88 72 . 228 251 910 . 310 404 301 1113 3140 247 1691 2205 Remotely 1191 | 46 . . . . . . . . . . . . . . . . . . . . . . . . . . 1145 Salvage Created 48692 | 148 866 247 701 1905 278 . 2709 1381 379 428 1510 1745 265 90 . 276 967 1494 . 2477 2940 1823 710 20710 1185 1286 2172 Parts 2189 | 15 46 19 51 105 16 . 112 65 29 25 59 79 6 2 . 12 50 87 . 58 93 50 83 975 47 25 80 Haulers Intercepted 29 | . 2 . 1 5 . . 4 . . . 3 5 . . . . . . . 6 2 1 . . . . . Recyclers Shooed 13 | . 2 . 2 2 . . 5 . . . . . . . . . . . . 1 1 . . . . . . Parts Field Recycled 11 | . . . . . . . . . . . . . . . . 11 . . . . . . . . . . . Retrieved Matter 392 | . . . . . . . . . . . . . . . . 392 . . . . . . . . . . . Parts Self-Destructed 13 | . . . . . . . . . . . . . 1 1 . 11 . . . . . . . . . . . Prevented . | . . . . . . . . . . . . . . . . . . . . . . . . . . . . Kills | -11 -10 -10 -9 -9 -9 -9 -6 -6 -6 -6 -6 -5 -5 -5 -5 -4 -4 -4 -4 -3 -3 -2 -2 -2 -1 -1 -1 ------- Run | Yrd Mat Min Mat Sto Rec Scr Fac Ext Cet Arc Hub Fac Upp Upp Zhi Pro Fac Arm Lab Res Tes Res Qua Frg Acc Com Ac0 Combat Hostiles Destroyed 476 | . 15 7 14 24 4 . 21 20 4 1 13 18 . 1 . 5 11 20 . 18 34 14 7 169 13 12 31 Melee 7 | . . . . . . . . . . . . 5 . . . . . . . . . . . 2 . . . Guns 254 | . 15 7 9 17 1 . 21 20 4 1 10 7 . 1 . 5 4 20 . 16 30 13 6 35 9 3 . Cannons 130 | . . . . . 3 . . . . . . 2 . . . . 5 . . . . . . 94 2 1 23 AOE 20 | . . . 5 5 . . . . . . 3 3 . . . . . . . . . . . . 2 2 . Classes Destroyed 36 | 2 7 1 2 1 1 . 3 1 . . 1 2 1 . . . . . . 1 1 . 1 10 1 . . Worker 19 | . 1 2 3 1 . . 4 . . . 2 . . . . . 1 . . 1 2 1 . 1 . . . Builder 18 | . 1 . 4 2 . . 5 1 . . 1 1 . . . . 2 . . . 1 . . . . . . Tunneler 6 | 4 . . . . . . . . . . 1 1 . . . . . . . . . . . . . . . Hauler 29 | . 2 . 1 5 . . 4 . . . 3 5 . . . . . . . 6 2 1 . . . . . Recycler 30 | 1 1 . 1 4 1 . 8 1 . . 2 3 . . . . . . . 3 . 4 . . 1 . . Carrier 4 | . . . . . . . . . . . . . . . . . . . . . . . . 4 . . . Mechanic 4 | . 1 . . 1 . . . . . . . . . . . . . . . . . . . 2 . . . Operator 12 | . 1 . 1 1 . . . . . 8 . . . . . . . . . . . . 1 . . . . Drone 8 | . . . . . . . 1 . . . . . . . . . . . . . . . . 7 . . . Watcher 18 | . . . 1 . . . 1 . 1 . 1 2 . . . . . . . 2 3 3 . 2 2 . . Swarmer 45 | . . 3 . . . . . 4 . . . 11 . . . 5 . . . . . . . 22 . . . Cutter 5 | . . . . . . . . . . . . 2 . . . . . . . . . . . . 3 . . Saboteur 3 | . . . . . . . . . . . . . . . . . . . . . . . . 2 . 1 . Grunt 111 | . 12 4 13 11 . . 5 6 . . 5 3 . . . . 5 7 . 7 14 . . 14 3 2 . Brawler 9 | . . . . . 1 . . . . . . 1 . . . . 1 . . . 1 . . 5 . . . Duelist 10 | . . . . 1 . . . . . . 1 . . . . . . 3 . . . . . 4 . 1 . Protector 6 | . . . . . . . . . . . . . . . . . . . . . . . . 6 . . . Researcher 9 | . . . . . . . . . . . . . . . . . . . . . 3 . . 6 . . . Sentry 59 | . . . 1 12 3 . 6 9 . 1 3 1 . 1 . . 1 1 . 2 . 2 . 11 4 1 . Specialist 2 | . . . . . . . . . . . . . . . . . . . . . . . . . 2 . . Hunter 42 | . . . . . . . 4 . . . 1 . . . . . 2 . . 5 9 4 . 17 . . . Programmer 51 | . . . . . . . 5 . . . 1 . . . . . 2 6 . . 9 7 . 20 1 . . Heavy 4 | . . . . . . . . . . . 1 . . . . . . . . . . 1 . . . 2 . Q-Series 1 | . . . . . . . . . . . . . . . . . . . . . . . . 1 . . . Behemoth 2 | . . . . . . . . 1 . . . . . . . . . 1 . . . . . . . . . Armor Guard 2 | . . . . . . . . . . . . . . . . . . 2 . . . . . . . . . Cetus Guard 4 | . . . . . . . . . 4 . . . . . . . . . . . . . . . . . . Quarantine Guard 6 | . . . . . . . . . . . . . . . . . . . . . . . 6 . . . . M Guard 2 | . . . . . . . . . . . . . . . . . . . . . . . . . . 2 . Enhanced Grunt 21 | . . . . . . . . . . . 1 . . . . . . . . . . . . . . . 20 Enhanced Sentry 1 | . . . . . . . . . . . . . . . . . . . . . . . . . . . 1 Enhanced Hunter 6 | . . . . . . . . . . . . . . . . . . . . . . . . . . . 6 Lightning 1 | . . . . . . . . . . . 1 . . . . . . . . . . . . . . . . Hotshot 4 | . . . . . . . . . . . . . . . . . . . . . . . . 4 . . . Decapitator 6 | . . . . . . . . . . . . . . . . . . . . . . . . 6 . . . Immortal 5 | . . . . . . . . . . . . . . . . . . . . . . . . 5 . . . Combat Programmer 2 | . . . . . . . . . . . . . . . . . . . . . . . . . . 2 . Striker 20 | . . . . . . . . . . . . . . . . . . . . 4 . . . 16 . . . Executioner 21 | . . . . . . . . . . . . . . . . . . . . . . . . 21 . . . Alpha 7 2 | . . . . . . . . . . . . . . . . . . . . . . . . 2 . . . Fortress 1 | . . . . . . . . . . . . . . . . . . . . . . . 1 . . . . V-Series 5 | . . . . . . . . . . . . . . . . . . . . . . . . 5 . . . Protovariant L 1 | . . . . . . . . . . . . . . . . . . . . . 1 . . . . . . Subdweller 3 | . 3 . . . . . . . . . . . . . . . . . . . . . . . . . . Scrapper 5 | . . . . . . . . . . . . . . . . . . . . . . . . 5 . . . Elite 6 | . . . . . . . . . . . . . . . . . . . . . . . . 6 . . . Scrapoid 16 | . . . . . . . . . . . . 2 . . . . . . . . . . . 14 . . . Scraphulk 27 | . . . . . . . . . . . . . . . . . . . . . . . . 27 . . . Savage 1 | . . . . . . . . . . 1 . . . . . . . . . . . . . . . . . Guerrilla 2 | . . . . . . . . 2 . . . . . . . . . . . . . . . . . . . Mutant 1 | . . . . . . . . . . . . . 1 . . . . . . . . . . . . . . Best Kill Streak 12 | 5 6 3 8 8 2 . 10 5 3 4 6 9 . 1 . 5 5 4 . 5 6 6 2 12 4 4 6 Combat Bots Only 11 | . 3 3 5 8 2 . 4 5 2 1 3 8 . 1 . 5 4 4 . 4 4 3 2 11 3 4 6 Max Kills in Single Turn 6 | 1 2 2 6 2 1 . 2 1 1 1 3 5 1 1 . 3 1 2 . 2 2 3 1 5 2 2 2 Gunslinging 1 | . . 1 . . . . . . . . . 1 . . . 1 . 1 . . 1 . . 1 . . . Exploded 3 | . . . 3 2 . . . . . . 3 3 . . . . . . . . . . . . 2 1 . Melee 1 | . . . . . . . . . . . . 1 . . . . . . . . . . . 1 . . . Uniques/NPCs Destroyed 9 | . . . . . . . . . 1 . . . . . . . . . . . . . . 1 . 2 5 A7 (-6/Cetus) Superfortress (-2/Protoforge) MAIN.C Shell (-1/Command) MAIN.C (-1/Command) A8 (-1/Access_0) A6 (-1/Access_0) A2 (-1/Access_0) A5 (-1/Access_0) Architect (-1/Access_0) Combat | -11 -10 -10 -9 -9 -9 -9 -6 -6 -6 -6 -6 -5 -5 -5 -5 -4 -4 -4 -4 -3 -3 -2 -2 -2 -1 -1 -1 -------- Run | Yrd Mat Min Mat Sto Rec Scr Fac Ext Cet Arc Hub Fac Upp Upp Zhi Pro Fac Arm Lab Res Tes Res Qua Frg Acc Com Ac0 Hostile Shots Fired 3426 | . 88 16 48 76 6 . 252 157 13 2 257 201 8 6 . 13 138 162 . 82 206 62 50 560 325 163 535 Missed 968 | . 27 2 13 24 . . 87 67 6 . 68 54 3 2 . 5 48 49 . 30 66 13 8 103 95 28 170 Intercepted 12 | . . . . . . . . . . . . . . . . . . . . . . . . . . 12 . Deflected 4 | . . . . . . . . . . . . . . . . . . 4 . . . . . . . . . Hits 2458 | . 61 14 35 52 6 . 165 90 7 2 189 147 5 4 . 8 90 113 . 52 140 49 42 457 230 135 365 Melee 42 | . . . . . . . . . . . . 12 . . . . . 3 . . 3 . . 1 18 . 5 Projectile 2416 | . 61 14 35 52 6 . 165 90 7 2 189 135 5 4 . 8 90 110 . 52 137 49 42 456 212 135 360 AOE 12 | . . . . . . . . . . . . . . . . . . . . . . . . 4 3 5 . Critical Strikes 138 | . 2 . . 1 . . 5 . 2 . 9 8 . . . . 3 9 . . 7 3 1 32 18 17 21 Actively Blocked 48 | . . . . . . . . . . . 2 6 . . . . . . . . . 1 . 10 6 17 6 Part Disruptions 16 | . . . . . . . 1 . . . 1 . . . . . . . . . 1 . . 1 2 5 5 Damage Taken 41127 | . 823 148 436 857 87 . 1946 715 182 45 3278 2503 119 90 . 129 1784 1606 . 717 1478 1199 1273 9917 2931 3230 5634 Core 4085 | . 179 28 51 51 . . 181 81 15 . 388 680 28 . . 18 148 172 . 65 63 179 23 1119 94 105 417 Absorbed by Shields 19557 | . . . . . . . . 323 69 . 523 . . . . . . 727 . 515 1213 319 512 4091 2605 3170 5490 Reduced by Siege Mode 645 | . . . . . . . . . . . 11 . . . . . . . . . . . 20 209 . 206 199 Redirected to Shielding 194 | . . . . . . . . . . . . . . . . . . . . . . . . 108 . . 86 Ignored by Resistances 13 | . . . . . . . . . . . . . . . . . . . . . . . . . . . 13 Regen/Repaired (Parts) 7672 | . . . . . . 11 330 94 34 32 133 472 53 29 . 10 119 391 . 82 267 25 296 1808 1421 988 1077 Core Remaining (%) 49 | 100 . 17 . . . 74 . . . . 21 . . . . 27 . . 65 . 90 . . 3 . . 49 Volleys Fired 1619 | 9 64 16 33 67 8 . 93 61 39 51 38 41 6 9 . 5 43 59 8 51 65 40 31 501 45 93 143 Largest 8 | 2 2 2 2 2 2 . 3 3 3 3 3 3 3 3 . 3 4 4 1 6 6 8 8 8 6 8 8 Hottest 1010 | 40 60 46 90 90 110 . 92 145 162 162 168 147 85 85 . 80 221 171 120 156 210 286 429 1010 510 901 901 Shots Fired 7367 | 18 127 32 65 134 16 . 271 180 71 75 107 79 14 15 . 15 81 208 8 256 373 215 141 3418 222 303 923 Gun 3266 | 18 127 32 60 134 10 . 270 180 70 75 104 75 12 9 . 15 36 208 . 246 371 201 126 510 143 195 39 Cannon 4082 | . . . . . 6 . 1 . . . . 4 2 6 . . 45 . 8 10 2 14 15 2907 79 99 884 Launcher 15 | . . . 5 . . . . . . . 1 . . . . . . . . . . . . . . 9 . Special 4 | . . . . . . . . . 1 . 2 . . . . . . . . . . . . 1 . . . Kinetic 1729 | 18 96 32 28 8 6 . 270 158 33 35 77 56 12 9 . 15 36 163 . . . . . 208 20 86 363 Thermal 5265 | . . . . . 6 . 1 22 37 40 27 19 2 6 . . 24 45 8 256 373 209 141 3190 146 174 539 Explosive 6 | . . . 5 . . . . . . . 1 . . . . . . . . . . . . . . . . Electromagnetic 363 | . 31 . 32 126 4 . . . . . . 4 . . . . 21 . . . . 6 . 19 56 43 21 Robot Hit Streak 47 | 3 9 6 14 18 8 . 11 8 14 7 11 8 16 17 . 13 20 36 . 16 47 24 34 23 11 33 35 Robot Miss Streak 30 | 1 5 4 3 4 1 . 5 4 2 3 7 5 . 2 . . 2 2 . 4 3 2 2 30 12 2 8 Penetration Max 2 | . . . . . . . 1 1 1 1 2 1 . . . 1 1 2 . . . . . 1 . . 1 Secondary Targets 48 | . 3 1 1 3 . . 3 5 . . 3 1 . . . 1 . 4 . 2 9 1 . 10 . 1 . Max Gunslinging Chain 2 | . 1 1 1 1 . . 1 1 . . 1 1 . . . 1 . 1 . 1 1 1 . 2 . 1 . Shots Hit Robots 3587 | 12 93 22 50 125 14 . 169 107 54 41 57 66 8 5 . 9 54 132 . 178 266 122 85 1062 110 189 557 Core Hits 1740 | 6 45 15 42 74 8 . 68 50 26 21 47 34 5 3 . 7 28 69 . 77 118 54 39 518 43 72 271 Critical Kills 84 | 1 . . . . . . 4 3 1 . 5 2 . 1 . 1 . 9 . . . . 1 39 3 . 14 Critical Parts Destroyed 76 | . 2 1 1 . . . 7 2 1 1 2 4 . . . . 1 18 . . . . . 9 1 . 26 Critical Strikes 255 | 1 3 1 1 . . . 11 8 4 6 9 8 . 1 . 1 2 41 . 14 14 5 4 55 7 1 58 Burn 55 | . . . . . . . . 1 2 5 2 1 . . . . . 4 . 14 14 5 3 3 1 . . Meltdown 44 | . . . . . . . . . . . . . . . . . . . . . . . 1 36 . . 7 Destroy 137 | 1 2 1 1 . . . 7 7 1 1 7 3 . 1 . 1 1 37 . . . . . 15 4 . 47 Blast 7 | . . . . . . . . . . . . . . . . . . . . . . . . 1 1 1 4 Corrupt 2 | . 1 . . . . . . . . . . . . . . . 1 . . . . . . . . . . Smash 9 | . . . . . . . 4 . 1 . . 4 . . . . . . . . . . . . . . . Sever 1 | . . . . . . . . . . . . . . . . . . . . . . . . . 1 . . Melee Attacks 178 | . . . . 3 . . 42 8 2 . . 29 . . . . 5 8 . . 2 . 5 23 30 21 . Impact 98 | . . . . 3 . . 41 8 2 . . 29 . . . . 5 8 . . 2 . . . . . . Slashing 79 | . . . . . . . . . . . . . . . . . . . . . . . 5 23 30 21 . Piercing . | . . . . . . . . . . . . . . . . . . . . . . . . . . . . Sneak Attacks 27 | . . . . 2 . . 11 2 2 . . 6 . . . . 1 . . . . . . 3 . . . Combat Hostiles . | . . . . . . . . . . . . . . . . . . . . . . . . . . . . Follow-up Attacks . | . . . . . . . . . . . . . . . . . . . . . . . . . . . . Damage Inflicted 136976 | 118 1419 330 1686 2636 344 . 5064 3441 1724 1296 2626 3043 203 126 . 270 1901 3335 . 4792 7544 3841 2490 52880 3863 7345 24659 Guns 59654 | 118 1389 330 812 2008 151 . 4109 3290 1618 1296 1939 1239 203 126 . 270 784 3335 . 4792 7544 3839 2345 11294 2222 3816 785 Cannons 70145 | . . . . . 166 . . . . . . 78 . . . . 886 . . . . . 83 40919 1343 2796 23874 Explosions 3366 | . . . 874 502 . . . . . . 687 431 . . . . . . . . . . . 179 158 535 . Melee 3676 | . . . . 106 . . 955 151 106 . . 1274 . . . . 196 . . . . . 62 488 140 198 . Ramming 135 | . 30 . . 20 27 . . . . . . 21 . . . . 35 . . . . 2 . . . . . Kinetic 32159 | 118 1081 330 349 122 86 . 4109 2701 753 663 1519 875 203 126 . 270 784 2362 . . . . . 5359 318 3513 6518 Thermal 93778 | . . . 110 434 166 . . 589 865 633 596 795 . . . . 257 973 . 4792 7544 3740 2428 46690 2388 2876 17902 Explosive 832 | . . . 764 68 . . . . . . . . . . . . . . . . . . . . . . . Electromagnetic 6396 | . 308 . 463 1886 65 . . . . . 511 78 . . . . 629 . . . . 99 . 343 1017 758 239 Impact 2788 | . . . . 106 . . 955 151 106 . . 1274 . . . . 196 . . . . . . . . . . Slashing 888 | . . . . . . . . . . . . . . . . . . . . . . . 62 488 140 198 . Piercing . | . . . . . . . . . . . . . . . . . . . . . . . . . . . . Highest Corruption 49 | . 1 1 . . . . 4 4 4 5 49 1 1 1 1 1 . 1 1 . 7 5 5 35 8 10 1 Average Corruption 6 | . 1 1 . . . . 2 4 4 3 9 1 1 1 1 1 . 1 1 . 4 3 5 17 2 4 1 Corruption Purged 99 | . . . . . . . . . . 7 2 . . . . . . . . . . . . 63 . 27 . Corruption Blocked . | . . . . . . . . . . . . . . . . . . . . . . . . . . . . Effects 594 | . 5 4 . . . . 35 28 14 9 11 5 1 5 . 4 . 4 1 . 37 22 49 288 15 54 3 Message Errors 119 | . 1 1 . . . . 7 8 3 1 2 1 . 1 . 2 . 2 1 . 9 5 11 46 4 13 1 Matter Fused 109 | . 2 1 . . . . 7 5 5 4 . 1 1 . . . . 1 . . 8 4 14 41 4 11 . Heat Flow Errors 61 | . . 2 . . . . 5 2 4 2 . . . 3 . 2 . 1 . . 2 3 6 19 1 8 1 Energy Discharges 66 | . . . . . . . 7 4 1 . 1 . . 1 . . . . . . 4 3 4 33 1 7 . Parts Rejected 8 | . . . . . . . 1 . . . 2 . . . . . . . . . 1 . . 2 2 . . Parts Fused 7 | . . . . . . . 1 2 . . . . . . . . . . . . . . . 3 . 1 . Data Loss (minor) 56 | . . . . . . . 2 3 1 . 1 1 . . . . . . . . 6 5 7 22 1 7 . Data Loss (major) 21 | . 1 . . . . . 1 1 . . 1 . . . . . . . . . 2 . 3 9 1 2 . Misfires 17 | . . . . . . . 2 2 . 1 . 2 . . . . . . . . . 2 2 3 . 3 . Alerts 10 | . . . . . . . 1 . . . . . . . . . . . . . . . . 7 1 1 . Misdirections 8 | . . . . . . . . . . . 2 . . . . . . . . . . . . 6 . . . Weapon Failures 112 | . 1 . . . . . 1 1 . 1 2 . . . . . . . . . 5 . 2 97 . 1 1 Overload Shots . | . . . . . . . . . . . . . . . . . . . . . . . . . . . . Overflow Damage 2177 | . . . 35 52 . . 365 93 26 . 2 556 . . . . 73 . . . . . 12 561 48 125 229 Projectiles 879 | . . . . . . . . . . . . . . . . . 73 . . . . . . 538 29 10 229 Explosions 114 | . . . 35 9 . . . . . . 2 66 . . . . . . . . . . . . . 2 . Melee 1184 | . . . . 43 . . 365 93 26 . . 490 . . . . . . . . . . 12 23 19 113 . Knockbacks 49 | . . . . 1 . . 2 1 . . . 2 . . . . 2 . . . . . . 3 3 5 30 Impact 7 | . . . . 1 . . 2 1 . . . 2 . . . . 1 . . . . . . . . . . Kinetic 40 | . . . . . . . . . . . . . . . . . . . . . . . . 3 3 4 30 Secondary 2 | . . . . . . . . . . . . . . . . . 1 . . . . . . . . 1 . Self-Inflicted Damage 277 | . 1 . . 57 . . . . . . 131 6 . . . . 17 . . . . . . . . 65 . Shots 10 | . . . . 2 . . . . . . 2 . . . . . . . . . . . . . . 6 . Rammed 25 | . 7 . . 1 3 . . . . . . 12 . . . . 2 . . . . . . . . . . Targets Rammed 28 | . 8 . . 2 3 . . . . . . 12 . . . . 2 . . . . 1 . . . . . Kicked 1 | . . . . . . . . . . . . . . . . . . . . . . 1 . . . . . Crushed 2 | . 1 . . 1 . . . . . . . . . . . . . . . . . . . . . . . Highest Temperature 340 | . 84 240 216 294 204 . 274 135 340 324 324 264 92 217 . 255 277 175 126 270 300 280 320 186 203 203 183 Average Temperature 93 | . 29 63 65 75 90 . 33 55 116 77 105 100 32 61 . 96 90 25 52 54 51 83 105 131 127 133 144 Received Heat Transfer 3892 | . 351 45 222 258 27 . 307 153 9 . 297 180 30 27 . . 243 259 . 23 142 8 . 723 313 80 195 Effects 10 | . . . . 1 . . . . . . . 1 . . . . . . . 2 1 . . . 4 1 . Energy Bleed 5 | . . . . 1 . . . . . . . 1 . . . . . . . . 1 . . . 2 . . Interference 5 | . . . . . . . . . . . . . . . . . . . . 2 . . . . 2 1 . Siege Activations 24 | . . . . . . . . . . . 1 . . . . . . . . . . . 1 10 . 3 9 Total Turns 637 | . . . . . . . . . . . 1 . . . . . . . . . . . 20 132 . 157 327 Longest Duration 128 | . . . . . . . . . . . 1 . . . . . . . . . . . 20 28 . 54 128 Martial Activations . | . . . . . . . . . . . . . . . . . . . . . . . . . . . . Shielding Activations 1 | . . . . . . . . . . . . . . . . . . 1 . . . . . . . . . Total Turns 59 | . . . . . . . . . . . . . . . . . . 59 . . . . . . . . . Longest Duration 59 | . . . . . . . . . . . . . . . . . . 59 . . . . . . . . . Robots Disrupted 1 | . . . . . . . . . . . . . . . . . . . . . . . . . 1 . . Combat Hostiles 1 | . . . . . . . . . . . . . . . . . . . . . . . . . 1 . . Robots Corrupted 25 | . . . . 4 . . 7 1 . . 1 3 . . . . 3 . . . . . . . . 5 1 Combat Hostiles 11 | . . . . 2 . . . . . . . 1 . . . . 2 . . . . . . . . 5 1 Parts Fried 61 | . 2 . . 13 . . 15 3 . . 3 6 . . . . 3 . . . . 1 . 1 2 6 6 Impact Corruptions 34 | . . . . 2 . . 12 2 1 . . 14 . . . . 3 . . . . . . . . . . Robots Melted 70 | . . . . . . . . . . . . . . . . . . . . 2 4 1 1 54 . 1 7 Combat Hostiles 54 | . . . . . . . . . . . . . . . . . . . . 2 4 1 1 38 . 1 7 Parts Melted 385 | . . . . . . . . 1 . 5 2 1 . . . . . 1 . 37 48 36 8 235 3 4 4 Heat Transferred 94725 | . . . 200 700 222 . . 1100 1201 1600 1050 998 . . . . 296 1554 . 7770 11544 5180 3362 45665 2826 1836 7621 Parts Sabotaged . | . . . . . . . . . . . . . . . . . . . . . . . . . . . . Parts Stolen . | . . . . . . . . . . . . . . . . . . . . . . . . . . . . Parts Stripped . | . . . . . . . . . . . . . . . . . . . . . . . . . . . . Power Chain Reactions 15 | . . . 1 8 . . . . . . 2 . . . . . . . . . . . . . 1 3 . Alert | -11 -10 -10 -9 -9 -9 -9 -6 -6 -6 -6 -6 -5 -5 -5 -5 -4 -4 -4 -4 -3 -3 -2 -2 -2 -1 -1 -1 ------- Run | Yrd Mat Min Mat Sto Rec Scr Fac Ext Cet Arc Hub Fac Upp Upp Zhi Pro Fac Arm Lab Res Tes Res Qua Frg Acc Com Ac0 Maximum Alert Level 5 | . . . 1 3 1 . 2 1 1 . 4 4 . . . . . . . 1 2 1 . 5 5 5 . Low Security (%) 37 | 100 100 100 94 26 62 . 38 19 23 100 28 . . . . . 100 100 . 96 67 23 100 13 . . . Level 1 16 | . . . 5 23 37 . 58 80 76 . 9 5 . . . . . . . 3 31 76 . 8 . . . Level 2 7 | . . . . 43 . . 2 . . . 32 69 . . . . . . . . 1 . . 15 . . . Level 3 3 | . . . . 6 . . . . . . 18 19 . . . . . . . . . . . 10 . . . Level 4 1 | . . . . . . . . . . . 10 5 . . . . . . . . . . . 3 . . . Level 5 31 | . . . . . . . . . . . . . . . . . . . . . . . . 48 15 100 . High Security 2 | . . . . . . . . . . . . . . . . . . . . . . . . . 84 . . Max Security . | . . . . . . . . . . . . . . . . . . . . . . . . . . . . Peak Influence 4391 | 10 80 73 212 710 296 . 410 385 337 183 1247 1188 . . . . 187 199 . 277 409 311 183 4391 3358 2153 . Initial 2634 | . . 3 13 38 264 . . 200 151 60 . 557 . . . . 63 63 . . 153 227 168 11 2634 2148 . Average 692 | 1 21 16 123 377 142 . 259 266 235 76 481 636 . . . . 49 112 . 49 139 237 29 1757 3020 2110 . Influence Increases 20686 | 25 393 180 461 1196 312 . 1015 961 347 278 1827 1549 65 20 . 115 387 614 . 638 1038 565 410 5239 844 668 1539 Destroy 0b10 Robot/C 10080 | . 240 140 280 600 80 . 400 560 160 80 560 700 . 20 . 100 220 400 . 360 740 280 140 3440 260 320 . Destroy 0b10 Robot/NC 850 | 25 35 10 55 75 10 . 115 25 10 40 65 85 5 . . 5 15 . . 60 40 45 5 90 15 20 . Destroy Leader 1848 | . 54 30 44 202 . . 160 46 . . 160 130 . . . 10 40 70 . 106 110 98 60 444 34 50 . Allied During Kill 1492 | . . . . 159 31 . 9 243 170 115 514 188 . . . . . . . . . . . 41 . 22 . Trap Triggered on 0b10 20 | . . . . 20 . . . . . . . . . . . . . . . . . . . . . . . Successful Hack 556 | . 19 . 16 35 40 . 78 65 . . 39 30 . . . . 20 12 . 71 61 21 31 14 . 4 . Select Force Hacks 180 | . 30 . . . 150 . . . . . . . . . . . . . . . . . . . . . . Disable Machine 1635 | . . . 15 60 . . 120 . . 30 180 150 . . . . 15 60 . . 60 90 150 495 75 45 90 Anti-Garrison Action 150 | . . . . . . . . . . . . . . . . . . . . . . . . 150 . . . Destroy Structure 3025 | . . . 36 45 1 . 103 22 7 13 264 146 . . . . 32 72 . 26 12 31 24 460 150 132 1449 Partial Spotted 90 | . . . . . . . . . . . 15 30 . . . . 30 . . . . . . 15 . . . Lose Combat Pursuer 660 | . 15 . 15 . . . 30 . . . 30 90 60 . . . 15 . . 15 15 . . 90 210 75 . Active Sensor Use 100 | . . . . . . . . . . . . . . . . . . . . . . . . . 100 . . Influence Decreases 19297 | 25 384 155 403 611 989 . 605 1100 466 430 688 1526 601 350 296 13 360 599 144 365 906 670 690 868 1877 1578 2598 Entered New Map 8448 | . . 6 21 54 413 . . 210 120 92 . 582 431 120 296 . 39 66 144 . 120 178 132 9 1757 1210 2448 Time Decay 8175 | 25 334 149 382 477 576 . 555 490 286 278 358 494 170 230 . 13 230 503 . 365 446 482 385 629 80 238 . Lost Part 730 | . 50 . . 20 . . . . . . 110 90 . . . . 80 30 . . . 10 20 180 40 30 70 Lost Ally 846 | . . . . 60 . . 50 100 60 60 220 60 . . . . 6 . . . . . . 50 . 100 80 Purge Threat 1098 | . . . . . . . . 300 . . . 300 . . . . 5 . . . 340 . 153 . . . . Squads Dispatched 139 | . 4 . 1 6 . . 12 3 . . 10 12 . . . . 5 6 . 6 8 5 . 15 42 4 . Investigation 28 | . 2 . 1 1 . . 5 1 . . 1 3 . . . . 3 . . 3 1 1 . 3 3 . . Extermination 27 | . . . . . . . 6 . . . 1 2 . . . . 2 3 . . 3 4 . 5 . 1 . Reinforcement 37 | . 2 . . 3 . . 1 2 . . 5 5 . . . . . 3 . 3 4 . . 5 3 1 . Assault 40 | . . . . 1 . . . . . . . 2 . . . . . . . . . . . 2 33 2 . Garrison 7 | . . . . 1 . . . . . . 3 . . . . . . . . . . . . . 3 . . Intercept . | . . . . . . . . . . . . . . . . . . . . . . . . . . . . Searches Triggered . | . . . . . . . . . . . . . . . . . . . . . . . . . . . . Construction Impeded 3 | . . . . . . . . 1 . . . 2 . . . . . . . . . . . . . . . Haulers Reinforced 4 | . . . . . . . 1 . . . 1 1 . . . . . . . . . . . . 1 . . Active Scanning Responses 1 | . . . . . . . . . . . . . . . . . . . . . . . . . 1 . . Cargo Convoy Interrupts . | . . . . . . . . . . . . . . . . . . . . . . . . . . . . Stealth | -11 -10 -10 -9 -9 -9 -9 -6 -6 -6 -6 -6 -5 -5 -5 -5 -4 -4 -4 -4 -3 -3 -2 -2 -2 -1 -1 -1 --------- Run | Yrd Mat Min Mat Sto Rec Scr Fac Ext Cet Arc Hub Fac Upp Upp Zhi Pro Fac Arm Lab Res Tes Res Qua Frg Acc Com Ac0 Distress Signals 70 | . 3 . 1 3 . . . 3 2 . 3 1 . . . . 2 2 . 4 2 . . 10 4 30 . Communications Jammed 73 | . . . . . . . . . . . . . . . . . 15 2 . . 4 7 . 45 . . . Distress Signals 61 | . . . . . . . . . . . . . . . . . 14 2 . . 2 1 . 42 . . . Times Spotted 866 | . 28 7 18 33 3 . 34 32 10 33 40 52 10 1 . 9 20 24 . 23 42 18 10 233 86 20 80 Peak Tracking Total 19 | . 4 3 5 7 2 . 4 6 5 2 11 8 12 1 . 5 7 6 . 4 5 3 2 19 12 6 7 Tactical Retreats 29 | . 1 . 1 . . . 1 . . . 1 2 2 . . . 1 . . 1 1 . . 6 5 5 2 Traps | -11 -10 -10 -9 -9 -9 -9 -6 -6 -6 -6 -6 -5 -5 -5 -5 -4 -4 -4 -4 -3 -3 -2 -2 -2 -1 -1 -1 ------- Run | Yrd Mat Min Mat Sto Rec Scr Fac Ext Cet Arc Hub Fac Upp Upp Zhi Pro Fac Arm Lab Res Tes Res Qua Frg Acc Com Ac0 Traps Triggered 45 | . 4 . . 4 . . 1 5 . . 3 1 . . . . 4 2 . . . . . 17 2 2 . Indirectly . | . . . . . . . . . . . . . . . . . . . . . . . . . . . . Trap Hack Attempts . | . . . . . . . . . . . . . . . . . . . . . . . . . . . . Triggered . | . . . . . . . . . . . . . . . . . . . . . . . . . . . . Disarmed . | . . . . . . . . . . . . . . . . . . . . . . . . . . . . Reprogrammed 2 | . . . . 2 . . . . . . . . . . . . . . . . . . . . . . . Reused 2 | . . . . 2 . . . . . . . . . . . . . . . . . . . . . . . Traps Extracted . | . . . . . . . . . . . . . . . . . . . . . . . . . . . . Installed . | . . . . . . . . . . . . . . . . . . . . . . . . . . . . Triggered 2 | . . . . 2 . . . . . . . . . . . . . . . . . . . . . . . Machines | -11 -10 -10 -9 -9 -9 -9 -6 -6 -6 -6 -6 -5 -5 -5 -5 -4 -4 -4 -4 -3 -3 -2 -2 -2 -1 -1 -1 ---------- Run | Yrd Mat Min Mat Sto Rec Scr Fac Ext Cet Arc Hub Fac Upp Upp Zhi Pro Fac Arm Lab Res Tes Res Qua Frg Acc Com Ac0 Machines Disabled 142 | . . . 1 4 . . 8 . . 2 12 10 . 1 . . 2 4 2 . 4 7 10 60 5 3 7 Max in Single Turn 8 | . . . 1 1 . . 4 . . 1 5 8 . 1 . . 1 1 1 . 1 1 1 4 1 1 1 Garrison Access 5 | . . . . 1 . . 1 . . . 1 . . . . . . . . . 1 . . 1 . . . Network Hub 2 | . . . . . . . . . . . 2 . . . . . . . . . . . . . . . . Energy Cycler 1 | . . . . . . . . . . . . . . . . . . 1 . . . . . . . . . Machines Repaired . | . . . . . . . . . . . . . . . . . . . . . . . . . . . . Machines Dismantled . | . . . . . . . . . . . . . . . . . . . . . . . . . . . . Machines Sabotaged . | . . . . . . . . . . . . . . . . . . . . . . . . . . . . Overloaded Fab Kills . | . . . . . . . . . . . . . . . . . . . . . . . . . . . . Hacking | -11 -10 -10 -9 -9 -9 -9 -6 -6 -6 -6 -6 -5 -5 -5 -5 -4 -4 -4 -4 -3 -3 -2 -2 -2 -1 -1 -1 --------- Run | Yrd Mat Min Mat Sto Rec Scr Fac Ext Cet Arc Hub Fac Upp Upp Zhi Pro Fac Arm Lab Res Tes Res Qua Frg Acc Com Ac0 Machines Accessed 132 | . 4 . 6 11 11 1 16 14 1 . 10 10 . 1 4 . 6 2 . 5 8 4 7 7 2 2 . Terminals 84 | . 3 . 5 8 6 . 7 14 1 . 8 4 . 1 . . 2 . . 3 5 1 7 5 2 2 . Fabricators 4 | . . . . . . . . . . . . 1 . . . . 1 1 . . 1 . . . . . . Repair Stations 6 | . . . . . . . 4 . . . . 2 . . . . . . . . . . . . . . . Recycling Units 25 | . 1 . 1 2 5 . 3 . . . . 3 . . . . 3 1 . 2 . 3 . 1 . . . Scanalyzers 2 | . . . . . . . 1 . . . . . . . . . . . . . 1 . . . . . . Garrison Access 6 | . . . . 1 . . 1 . . . 2 . . . . . . . . . 1 . . 1 . . . Total Hacks 389 | . 14 . 17 28 29 5 34 27 2 . 24 23 . 6 17 . 33 7 . 28 30 16 23 15 9 2 . Successful 196 | . 9 . 11 16 20 5 18 14 . . 10 7 . 6 17 . 12 3 . 13 13 8 10 3 . 1 . Failed 193 | . 5 . 6 12 9 . 16 13 2 . 14 16 . . . . 21 4 . 15 17 8 13 12 9 1 . Catastrophic 38 | . . . . 1 3 . 3 3 . . 4 5 . . . . 4 1 . 1 . 2 3 5 3 . . Database Lockouts . | . . . . . . . . . . . . . . . . . . . . . . . . . . . . Manual 166 | . 10 . 8 11 20 . 12 10 1 . 6 6 . . . . 16 2 . 11 6 12 13 12 9 1 . Terminals 262 | . 11 . 14 22 17 . 13 27 2 . 20 13 . 6 . . 16 . . 23 24 7 23 13 9 2 . Fabricators 12 | . . . . . . . . . . . . 2 . . . . 2 5 . . 3 . . . . . . Repair Stations 11 | . . . . . . . 9 . . . . 2 . . . . . . . . . . . . . . . Recycling Units 66 | . 3 . 3 3 12 . 7 . . . . 6 . . . . 15 2 . 5 . 9 . 1 . . . Scanalyzers 6 | . . . . . . . 4 . . . . . . . . . . . . . 2 . . . . . . Garrison Access 10 | . . . . 3 . . 1 . . . 4 . . . . . . . . . 1 . . 1 . . . Terminal Hacks 106 | . 3 . 4 7 3 5 6 11 . . 8 3 . 6 17 . 5 . . 9 8 1 8 1 . 1 . Record 16 | . . . . . . 5 . . . . . . . 6 5 . . . . . . . . . . . . Part Schematic 4 | . . . . . . . . . . . . . . . 4 . . . . . . . . . . . . Robot Analysis 7 | . . . . 1 1 . . . . . . . . . 4 . . . . . 1 . . . . . . Prototype ID Bank 11 | . . . 2 . 2 . 1 . . . 1 . . . 4 . . . . 1 . . . . . . . Open Door 12 | . . . . 2 . . 1 8 . . . . . . . . . . . . . . . . . 1 . Level Access Points 1 | . . . . . . . . . . . 1 . . . . . . . . . . . . . . . . Branch Access Points 6 | . 1 . 1 . . . 1 . . . . . . . . . 1 . . 1 . 1 . . . . . Emergency Access Points 3 | . . . . . . . . . . . . . . . . . . . . 1 . . 2 . . . . Terminal Index 3 | . . . . . . . 1 . . . . . . . . . . . . . . . 2 . . . . Alert Level 4 | . . . . . . . . . . . 2 . . . . . . . . 1 1 . . . . . . Unreport Threat 12 | . . . . . . . . 2 . . . 2 . . . . 2 . . . 3 . 3 . . . . Locate Traps 6 | . . . . 1 . . . 1 . . 1 . . . . . 1 . . 2 . . . . . . . Reprogram Traps 1 | . . . . 1 . . . . . . . . . . . . . . . . . . . . . . . Maintenance Status 1 | . . . . . . . . . . . . . . . . . . . . . 1 . . . . . . Hauler Manifests 3 | . . . . . . . . . . . 1 1 . . . . . . . 1 . . . . . . . Registered Components 3 | . 1 . . . . . . . . . . . . . . . . . . 1 1 . . . . . . Registered Prototypes 2 | . . . . 1 . . . . . . . . . . . . . . . . 1 . . . . . . Zone Layout 10 | . 1 . 1 1 . . 2 . . . 2 . . . . . 1 . . 1 . . 1 . . . . Proto ID Catalog 1 | . . . . . . . . . . . . . . . . . . . . . . . . 1 . . . Fabricator Hacks 5 | . . . . . . . . . . . . . . . . . . 2 . . 3 . . . . . . Network Status 2 | . . . . . . . . . . . . . . . . . . 1 . . 1 . . . . . . Load Schematic 1 | . . . . . . . . . . . . . . . . . . . . . 1 . . . . . . Build 2 | . . . . . . . . . . . . . . . . . . 1 . . 1 . . . . . . Repair Station Hacks 5 | . . . . . . . 4 . . . . 1 . . . . . . . . . . . . . . . Scan Component 3 | . . . . . . . 3 . . . . . . . . . . . . . . . . . . . . Repair 1 | . . . . . . . 1 . . . . . . . . . . . . . . . . . . . . Refit 1 | . . . . . . . . . . . . 1 . . . . . . . . . . . . . . . Recycling Unit Hacks 13 | . 1 . . 2 4 . 1 . . . . . . . . . 2 . . 1 . 2 . . . . . Retrieve Components 13 | . 1 . . 2 4 . 1 . . . . . . . . . 2 . . 1 . 2 . . . . . Scanalyzer 2 | . . . . . . . 1 . . . . . . . . . . . . . 1 . . . . . . Insert Component 2 | . . . . . . . 1 . . . . . . . . . . . . . 1 . . . . . . Garrison Access Hacks 4 | . . . . 1 . . 1 . . . 1 . . . . . . . . . 1 . . . . . . Seal Access 4 | . . . . 1 . . 1 . . . 1 . . . . . . . . . 1 . . . . . . Unauthorized Hacks 61 | . 5 . 7 6 13 . 5 3 . . 1 3 . . . . 5 1 . 3 . 5 2 2 . . . Terminals 35 | . 3 . 7 6 8 . 1 3 . . 1 . . . . . 2 . . 1 . . 2 1 . . . Assimilate 1 | . . . . . . . . . . . . . . . . . 1 . . . . . . . . . . Botnet 16 | . 1 . 2 1 3 . 1 2 . . 1 . . . . . 1 . . 1 . . 2 1 . . . Skim 18 | . 2 . 5 5 5 . . 1 . . . . . . . . . . . . . . . . . . . Fabricators 1 | . . . . . . . . . . . . . . . . . . 1 . . . . . . . . . Prioritize 1 | . . . . . . . . . . . . . . . . . . 1 . . . . . . . . . Repair Stations 1 | . . . . . . . 1 . . . . . . . . . . . . . . . . . . . . Patch 1 | . . . . . . . 1 . . . . . . . . . . . . . . . . . . . . Recycling Units 24 | . 2 . . . 5 . 3 . . . . 3 . . . . 3 . . 2 . 5 . 1 . . . Reject 2 | . . . . . . . . . . . . . . . . . . . . . . 2 . . . . . Mask 3 | . 1 . . . . . . . . . . . . . . . . . . . . 2 . . . . . Tunnel 6 | . 1 . . . 5 . . . . . . . . . . . . . . . . . . . . . . Fedlink 12 | . . . . . . . 3 . . . . 2 . . . . 3 . . 2 . 1 . 1 . . . Scrapoids 1 | . . . . . . . . . . . . 1 . . . . . . . . . . . . . . . Scanalyzers . | . . . . . . . . . . . . . . . . . . . . . . . . . . . . Garrison Access . | . . . . . . . . . . . . . . . . . . . . . . . . . . . . Data Cores Recovered 1 | . . . 1 . . . . . . . . . . . . . . . . . . . . . . . . Used . | . . . . . . . . . . . . . . . . . . . . . . . . . . . . Hacking Detections 93 | . 3 . 6 8 8 . 10 7 1 . 9 6 . 1 . . 4 1 . 4 7 3 7 5 2 1 . Full Trace Events 6 | . . . 1 . . . 1 1 . . . . . . . . . . . . 1 . . . 2 . . Feedback Events 1 | . . . . . . . . . . . . . . . . . . . . . . . . . 1 . . Corruption 1 | . . . . . . . . . . . . . . . . . . . . . . . . . 1 . . Feedback Blocked . | . . . . . . . . . . . . . . . . . . . . . . . . . . . . Robot Schematics Acquired 10 | . . . . . . . . . . . . . . . . . . . . . 2 . 1 7 . . . Robots Built . | . . . . . . . . . . . . . . . . . . . . . . . . . . . . Authchips . | . . . . . . . . . . . . . . . . . . . . . . . . . . . . Time . | . . . . . . . . . . . . . . . . . . . . . . . . . . . . Total Robot Build Rating . | . . . . . . . . . . . . . . . . . . . . . . . . . . . . Part Schematics Acquired 29 | . . . . . . . . . . . . . . . 4 . . . . . 9 . 4 12 . . . Parts Built 3 | . . . . . . . . . . . . . . . . . . 2 . . 1 . . . . . . Authchips . | . . . . . . . . . . . . . . . . . . . . . . . . . . . . Time 326 | . . . . . . . . . . . . . . . . . . 139 . . 187 . . . . . . Total Part Build Rating 25 | . . . . . . . . . . . . . . . . . . 18 . . 7 . . . . . . Parts Repaired 1 | . . . . . . . 1 . . . . . . . . . . . . . . . . . . . . Time 62 | . . . . . . . 62 . . . . . . . . . . . . . . . . . . . . Parts Recycled . | . . . . . . . . . . . . . . . . . . . . . . . . . . . . Recycled Matter . | . . . . . . . . . . . . . . . . . . . . . . . . . . . . Retrieved Matter . | . . . . . . . . . . . . . . . . . . . . . . . . . . . . Retrieved Components 35 | . 2 . . 10 12 . 1 . . . . . . . . . 2 . . 6 . 2 . . . . . Parts Scanalyzed . | . . . . . . . . . . . . . . . . . . . . . . . . . . . . Part Schematics Acquired . | . . . . . . . . . . . . . . . . . . . . . . . . . . . . Parts Damaged . | . . . . . . . . . . . . . . . . . . . . . . . . . . . . Bothacking | -11 -10 -10 -9 -9 -9 -9 -6 -6 -6 -6 -6 -5 -5 -5 -5 -4 -4 -4 -4 -3 -3 -2 -2 -2 -1 -1 -1 ------------ Run | Yrd Mat Min Mat Sto Rec Scr Fac Ext Cet Arc Hub Fac Upp Upp Zhi Pro Fac Arm Lab Res Tes Res Qua Frg Acc Com Ac0 Used RIF Installer . | . . . . . . . . . . . . . . . . . . . . . . . . . . . . Robots Hacked 2 | . . . . . . . 1 . . . . . . . . . . . . . . . . 1 . . . Non-combat . | . . . . . . . . . . . . . . . . . . . . . . . . . . . . Combat . | . . . . . . . . . . . . . . . . . . . . . . . . . . . . Robot Hacks Applied . | . . . . . . . . . . . . . . . . . . . . . . . . . . . . Manual 2 | . . . . . . . 1 . . . . . . . . . . . . . . . . 1 . . . Relay Couplers Released 8 | . . . . 4 . . . . . . . . . . . . . . . . . . . 4 . . . Machine Destruction 4 | . . . . 4 . . . . . . . . . . . . . . . . . . . . . . . Programmers 4 | . . . . . . . . . . . . . . . . . . . . . . . . 4 . . . Fabnet Peak Effective % . | . . . . . . . . . . . . . . . . . . . . . . . . . . . . Robots Rewired 17 | . . . . . 2 . . 15 . . . . . . . . . . . . . . . . . . . Allies Hacked 4 | . . . . . . . 2 . . . . . . . . . 1 . . . . . . 1 . . . Hacks Repelled . | . . . . . . . . . . . . . . . . . . . . . . . . . . . . Allies | -11 -10 -10 -9 -9 -9 -9 -6 -6 -6 -6 -6 -5 -5 -5 -5 -4 -4 -4 -4 -3 -3 -2 -2 -2 -1 -1 -1 -------- Run | Yrd Mat Min Mat Sto Rec Scr Fac Ext Cet Arc Hub Fac Upp Upp Zhi Pro Fac Arm Lab Res Tes Res Qua Frg Acc Com Ac0 Total Allies 51 | . . . . 10 2 . 1 26 5 . . 5 . . . . 1 . . . . . . 1 . . . Largest Group 21 | . . . . 10 9 9 3 19 21 19 15 5 . . . . 1 . . . . . . 1 . . . Highest-Rated Group 1034 | . . . . 88 99 99 30 649 1034 868 767 235 . . . . 10 . . . . . . 35 . . . Highest-Rated Ally 159 | . . . . 16 27 27 14 159 159 96 96 47 . . . . 10 . . . . . . 35 . . . Total Orders 51 | . . . . . . . . . 2 1 2 2 . . . . . . . . . . . 2 . 11 31 STAY 5 | . . . . . . . . . 1 1 2 1 . . . . . . . . . . . . . . . FOLLOW 2 | . . . . . . . . . 1 . . 1 . . . . . . . . . . . . . . . EXPLORE 12 | . . . . . . . . . . . . . . . . . . . . . . . . . . . 12 RETURN 32 | . . . . . . . . . . . . . . . . . . . . . . . . 2 . 11 19 Ally Attacks 608 | . . . . 37 9 . 8 85 44 32 79 100 . . . . . . . . . . . 39 . 80 95 Total Damage 21026 | . . . . 275 84 . 45 2050 903 889 2693 2997 . . . . . . . . . . . 1683 . 4700 4707 Kills 83 | . . . . 7 1 . . 11 5 3 19 22 . . . . . . . . . . . 6 . 4 5 Allies Corrupted 5 | . . . . . . . . 1 . . 1 . . . . . . . . . . . . 1 . 2 . Allies Melted 17 | . . . . . . . . . . . . . . . . . . . . . . . . 17 . . . Intel | -11 -10 -10 -9 -9 -9 -9 -6 -6 -6 -6 -6 -5 -5 -5 -5 -4 -4 -4 -4 -3 -3 -2 -2 -2 -1 -1 -1 ------- Run | Yrd Mat Min Mat Sto Rec Scr Fac Ext Cet Arc Hub Fac Upp Upp Zhi Pro Fac Arm Lab Res Tes Res Qua Frg Acc Com Ac0 Active Infowar (turns) 31336 | 55 592 39 . . . 1444 2201 1294 67 89 . 702 . 245 133 354 630 1305 435 1140 1547 1241 1902 6623 1108 7946 244 Optics 22884 | . 70 39 . . . 1444 2201 1294 67 . . . . . . . . . . . 286 1241 1902 6514 . 7721 105 Sensors 6883 | . . . . . . . 626 28 . . . 699 . . . 220 287 1137 435 521 . 817 1359 754 . . . A.S.S. 1195 | . . . . . . . . . . . . . . . . . . . . . . . . 173 973 49 . Terrain 508 | 55 283 . . . . . . . . . . . . . . . . . . . . . . . . . 170 Seismic 557 | 35 522 . . . . . . . . . . . . . . . . . . . . . . . . . . T.N.C. 3 | . . . . . . . . . . . . 3 . . . . . . . . . . . . . . . Cloaking 3764 | . . . . . . . . . . . . . . . . . . . . . . . . 865 1107 1792 . Jamming 9360 | . . . . . . . 4 . . 89 . . . 245 133 219 630 1119 435 1140 1547 1241 615 1943 . . . Robot Analysis Total 7 | . . . . 1 1 . . . . . . . . . 4 . . . . . 1 . . . . . . Derelict Logs Recovered 8 | . . 3 . . . 3 . . . . . . 1 1 . . . . . . . . . . . . . Drone Launches 55 | . . . . . . . . . . . . . . . . . . . . . . . . 13 . 17 25 Drone Recoveries 43 | . . . . . . . . . . . . . . . . . . . . . . . . 11 . 12 20 Exploration | -11 -10 -10 -9 -9 -9 -9 -6 -6 -6 -6 -6 -5 -5 -5 -5 -4 -4 -4 -4 -3 -3 -2 -2 -2 -1 -1 -1 ------------- Run | Yrd Mat Min Mat Sto Rec Scr Fac Ext Cet Arc Hub Fac Upp Upp Zhi Pro Fac Arm Lab Res Tes Res Qua Frg Acc Com Ac0 Turns Passed 43100 | 120 1002 615 1030 1272 1826 3388 2236 1294 627 625 918 1300 345 488 134 412 688 1380 435 1256 1547 1241 1902 6623 1108 7946 1342 Spaces Moved 23554 | 54 483 463 373 601 749 1753 1699 793 263 313 528 1553 406 528 148 443 565 796 259 568 647 606 1115 3740 722 3116 270 Core 269 | 4 3 . . . . . . . . . 10 241 . . . . . . . . . . . . . . 11 Treads 9927 | 50 419 . . 512 749 1039 . . . . 6 . . . . . . . . . . 375 1115 2216 76 3111 259 Legs 2372 | . . . . . . . . . . . . . . . . . . 667 259 568 647 231 . . . . . Wheels 10195 | . 61 463 373 89 . 714 1699 793 263 313 512 521 406 528 148 443 565 129 . . . . . 1524 646 5 . Hover 37 | . . . . . . . . . . . . 37 . . . . . . . . . . . . . . . Flight 754 | . . . . . . . . . . . . 754 . . . . . . . . . . . . . . . Fastest Speed 26 | 50 107 107 155 155 160 110 90 90 130 130 50 26 80 80 80 80 80 80 105 175 175 145 145 90 100 147 50 Average Speed 144 | 151 155 115 155 160 233 190 96 97 139 139 139 61 80 87 80 80 89 118 140 179 177 161 147 142 107 214 220 Slowest Speed 550 | 160 550 155 155 240 240 243 100 130 140 140 240 200 90 90 90 90 90 182 180 180 185 305 225 240 152 310 320 Overloaded Moves . | . . . . . . . . . . . . . . . . . . . . . . . . . . . . Propulsion Burnouts . | . . . . . . . . . . . . . . . . . . . . . . . . . . . . Robots Hopped 6 | . . . . . . . . . . . . 6 . . . . . . . . . . . . . . . Potential Cave-ins 7 | . . . . . . . 3 . . . . . . . . . . . . . . 2 . 2 . . . Cave-ins Triggered . | . . . . . . . . . . . . . . . . . . . . . . . . . . . . Teleports 34 | . . . . . . . . . . . . . . . . . . 1 . . . . . 5 24 3 1 Exploration Rate (%) 60 | 4 67 95 34 96 99 92 37 87 58 88 62 41 69 60 60 54 18 37 90 21 58 21 92 78 39 73 56 Regions Visited 27 Branch Regions 19 Pre-discovered Areas 22 | . 1 3 1 2 8 1 1 . . . . . 1 1 3 . . . . . . . . . . . . Known Exits Taken 12 | . 1 . 1 . 1 . 1 . . . 1 . . . . 1 1 1 . 1 . 1 1 1 . . . Unknown Exits Taken 15 | 1 . 1 . 1 . 1 . 1 1 1 . 1 1 1 1 . . . 1 . 1 . . . 1 1 . Scrap Searched 13 | . . 1 . . . 6 . . . . . . 3 2 . 1 . . . . . . . . . . . Spaces Dug 177 | . . . 22 . . . 20 3 . . . 4 . 4 . . 8 9 . 5 . 4 5 17 19 49 8 Terrain Destroyed 1539 | . . . 38 42 1 . 108 45 9 16 368 37 8 10 . 9 20 39 . 10 . 10 10 234 63 83 379 Melee 90 | . . . . . . . 19 2 . . . 4 . . . . 4 7 . . . . 2 13 19 20 . Projectile 913 | . . . . . 1 . 62 42 9 16 21 6 8 10 . 9 16 10 . 10 . 10 8 221 19 56 379 AOE 532 | . . . 38 42 . . 26 . . . 347 27 . . . . . 20 . . . . . . 25 7 . Terrain Rammed . | . . . . . . . . . . . . . . . . . . . . . . . . . . . . Walls Destroyed . | . . . . . . . . . . . . . . . . . . . . . . . . . . . . Machines Disabled . | . . . . . . . . . . . . . . . . . . . . . . . . . . . . Actions | -11 -10 -10 -9 -9 -9 -9 -6 -6 -6 -6 -6 -5 -5 -5 -5 -4 -4 -4 -4 -3 -3 -2 -2 -2 -1 -1 -1 --------- Run | Yrd Mat Min Mat Sto Rec Scr Fac Ext Cet Arc Hub Fac Upp Upp Zhi Pro Fac Arm Lab Res Tes Res Qua Frg Acc Com Ac0 Total 29972 | 73 597 513 758 777 811 1807 2069 1197 490 456 646 1787 415 541 161 488 675 1091 331 670 852 770 1286 4951 882 4160 718 Wait 2624 | . 12 20 312 42 23 1 108 82 146 76 44 42 . 1 1 7 28 95 3 20 73 58 49 359 25 750 247 Move 23516 | 53 482 462 372 600 748 1752 1698 792 262 312 527 1542 405 527 147 442 564 795 258 567 646 605 1114 3739 721 3115 269 Hop 4 | . . . . . . . . . . . . 4 . . . . . . . . . . . . . . . Pick Up 353 | 1 14 8 10 13 2 15 35 4 11 3 4 21 1 . 1 8 5 40 26 7 10 5 10 46 12 35 6 Fast Attach 203 | 8 8 . 2 5 . 5 6 1 3 2 . 37 . 1 2 1 7 10 4 1 7 7 13 41 4 22 6 Attach 119 | . 2 . 2 1 1 . 7 1 1 1 3 12 . . . 3 3 13 4 3 1 3 1 22 11 16 8 Detach 92 | 1 2 . . 1 . 7 1 . 2 . . 18 . 1 . 3 . 1 5 1 1 2 1 22 3 20 . Swap 507 | . 3 3 16 20 5 6 44 21 10 7 12 9 3 2 5 13 6 29 4 15 27 30 38 99 12 33 35 Drop 388 | 1 2 4 11 23 4 21 35 4 14 4 2 20 . . 5 6 4 36 19 5 20 19 24 59 . 42 4 Fire 1619 | 9 64 16 33 67 8 . 93 61 39 51 38 41 6 9 . 5 43 59 8 51 65 40 31 501 45 93 143 Melee 178 | . . . . 3 . . 42 8 2 . . 29 . . . . 5 8 . . 2 . 5 23 30 21 . Ram 7 | . 1 . . . . . . . . . . 4 . . . . 2 . . . . . . . . . . Kick 1 | . . . . . . . . . . . . . . . . . . . . . . 1 . . . . . Crush 20 | . 7 . . 2 3 . . . . . . 8 . . . . . . . . . . . . . . . Escape Stasis 139 | . . . . . . . . 47 . . 16 . . . . . 8 5 . . . . . 40 19 4 . Rewire 202 | . . . . . 17 . . 176 . . . . . . . . . . . . . . . . . 9 . Trap . | . . . . . . . . . . . . . . . . . . . . . . . . . . . . Miscellaneous . | . . . . . . . . . . . . . . . . . . . . . . . . . . . . Route ------- -11/Scrapyard -10/Materials (discovered 3 exits: *Mat / *Min x2) -10/Mines (discovered 2 exits: *Mat x2) -9/Materials (discovered 5 exits: *Mat x3 / Min / *Sto) -9/Storage (discovered 2 exits: *Mat / *Rec) -9/Recycling (discovered 2 exits: *Fac / *Scr) -9/Scraptown (discovered 2 exits: *Fac x2) -6/Factory (discovered 5 exits: *Fac / Low x2 / *Ext x2) -6/Extension (discovered 2 exits: *Fac / *Cet) -6/Cetus (discovered 2 exits: *Fac / [*Arc]) -6/Archives (discovered 3 exits: *Fac / *Hub x2) -6/Hub_04(d) (discovered 4 exits: *Fac x4) -5/Factory (discovered 3 exits: *Fac x2 / [*Upp]) -5/Upper Caves -5/Upper Caves (discovered 2 exits: *Fac / *Zhi) -5/Zhirov -4/Proximity Caves -4/Factory (discovered 3 exits: Upp x2 / *Arm) -4/Armory -4/Lab -3/Research (discovered 3 exits: *Res / *Tes x2) -3/Testing -2/Research (discovered 2 exits: *Qua x2) -2/Quarantine (discovered 3 exits: *Acc / [*Sec] / *Frg) -2/Protoforge -1/Access -1/Command (discovered 3 exits: [*Sur x2] / [*Ac0]) -1/Access_0 Near Former Tau Ceti IV History --------- Turn | Location | Event 3 | -11/Scrapyard | Discovered new exit (range 16) 121 | -11/Scrapyard | Entered Materials 315 | -10/Materials | Build established: Mutant 340 | -10/Materials | Discovered new exit (range 16) 722 | -10/Materials | Discovered new exit (range 14) 787 | -10/Materials | Identified exit to Mines 921 | -10/Materials | Derelicts attacked the area 1014 | -10/Materials | Core integrity fell below 50% 1061 | -10/Materials | Lost 3 parts (2n1w) 1123 | -10/Materials | Entered Mines 1161 | -10/Mines | Learned location of Zion (-7) 1180 | -10/Mines | Received a Rocket Launcher from a helpful Derelict 1235 | -10/Mines | Learned Materials terminal intel 1382 | -10/Mines | Core integrity fell below 20% 1518 | -10/Mines | Discovered new exit (range 11) 1665 | -10/Mines | Discovered new exit (range 12) 1738 | -10/Mines | Entered Materials 1738 | -9/Materials | Evolved 2 slots: Propulsion x1, Utility x1 1739 | -9/Materials | Loaded intel: 12 terminal locations 1789 | -9/Materials | Identified exit to Mines 1789 | -9/Materials | Identified exit to Storage 2080 | -9/Materials | Build established: Scavenger-Mutant 2326 | -9/Materials | Learned location of 1 exit from Recycling 2375 | -9/Materials | Discovered new exit (range 9) 2404 | -9/Materials | Identified exit to Materials 2456 | -9/Materials | Build established: Mutant 2474 | -9/Materials | Learned Materials terminal intel 2536 | -9/Materials | Loaded intel: 2 recycling unit locations 2590 | -9/Materials | Loaded intel: 2 repair station locations 2768 | -9/Materials | Entered Storage 3043 | -9/Storage | Garrison activated, responded to threat 3152 | -9/Storage | Destroyed 8 combat bots 3227 | -9/Storage | Build established: Scavenger-Mutant 3367 | -9/Storage | Learned Materials trap positions 3369 | -9/Storage | Assisted by bots powering up and referring to "LRC-V3" 3405 | -9/Storage | Learned Materials emergency access door positions 3666 | -9/Storage | Build established: Commander-Mutant 3968 | -9/Storage | First assault squad dispatched 4018 | -9/Storage | Used back door to open Recycling access 4018 | -9/Storage | Discovered new exit (range 3) 4040 | -9/Storage | Entered Recycling 4040 | -9/Recycling | Accompanied by 7 allies 4041 | -9/Recycling | Identified exit to Factory 4843 | -9/Recycling | Scanned before Scraplab entrance 4880 | -9/Recycling | Learned location of Mines (-8) 5033 | -9/Recycling | Learned Storage stockpile data 5062 | -9/Recycling | Learned location of 1 exit from Storage 5099 | -9/Recycling | Identified exit to Scraptown 5148 | -9/Recycling | Learned location of 1 exit from Storage 5817 | -9/Recycling | Entered Scraplab 5866 | -9/Recycling | Entered Scraptown 5866 | -9/Scraptown | Accompanied by 9 allies 6212 | -9/Scraptown | Discovered new exit (range 11) 6334 | -9/Scraptown | Scanned Subdweller tech in exchange for log data 6339 | -9/Scraptown | Learned Research terminal intel 6342 | -9/Scraptown | Learned location of Quarantine (-2) 6344 | -9/Scraptown | Learned location of 1 exit from Factory 6474 | -9/Scraptown | Visited Comm Corps 6507 | -9/Scraptown | Visited CPS Storage 6560 | -9/Scraptown | Visited The Evicted 6593 | -9/Scraptown | Visited Awakened 6636 | -9/Scraptown | Visited UFD Registry 7039 | -9/Scraptown | Visited Bundlers 7240 | -9/Scraptown | Visited Symbiants 7374 | -9/Scraptown | Registered with UFD as "Zerotank" 7459 | -9/Scraptown | Visited Curators Association 7544 | -9/Scraptown | Visited Junk Repository 7668 | -9/Scraptown | Visited Chapter 10 7714 | -9/Scraptown | Visited Modified Component R&D 7787 | -9/Scraptown | Visited Scrapoid Research Area 7824 | -9/Scraptown | Visited Derelict Rescue Squad 8236 | -9/Scraptown | Found Scrap Suit 8239 | -9/Scraptown | Found Scrap Suit 8262 | -9/Scraptown | Found Scrap Suit 8531 | -9/Scraptown | Visited Abandonware Association 8543 | -9/Scraptown | Learned abandonware demo "REPAIR.EXE" 8543 | -9/Scraptown | Learned abandonware demo "POISON.EXE" 8696 | -9/Scraptown | Build established: Commander-Scrapper 8704 | -9/Scraptown | Visited Assassins FH 9188 | -9/Scraptown | Met Optimus 9188 | -9/Scraptown | Accepted into 0bPrime 9252 | -9/Scraptown | Discovered new exit (range 3) 9254 | -9/Scraptown | Entered Factory 9254 | -6/Factory | Accompanied by 2 allies 9254 | -6/Factory | Evolved 6 slots: Power x1, Propulsion x1, Utility x3, Weapon x1 9255 | -6/Factory | Identified exit to Extension 9515 | -6/Factory | Discovered new exit (range 11) 9546 | -6/Factory | Build established: Scrapper 10054 | -6/Factory | Identified exit to Lower Caves 10950 | -6/Factory | Loaded intel: 8 recycling unit locations 11053 | -6/Factory | Repaired Lgt. Antimatter Reactor 11077 | -6/Factory | Learned location of Protoforge (-2) 11490 | -6/Factory | Entered Extension 11555 | -6/Extension | Rescued a captive Derelict 11574 | -6/Extension | Rescued a captive Derelict 11575 | -6/Extension | Rescued a captive Derelict 11718 | -6/Extension | Rescued a captive Derelict 11729 | -6/Extension | Rescued a captive Derelict 11875 | -6/Extension | Rescued A7 12149 | -6/Extension | Spotted B-75 Beast 12174 | -6/Extension | Allies destroyed B-75 Beast 12180 | -6/Extension | Spotted B-75 Beast 12197 | -6/Extension | Destroyed B-75 Beast 12260 | -6/Extension | Rescued a captive Derelict 12261 | -6/Extension | Rescued a captive Derelict 12447 | -6/Extension | Rescued a captive Derelict 12548 | -6/Extension | Rescued a captive Derelict 12582 | -6/Extension | Rescued a captive Derelict 12623 | -6/Extension | Build established: Commander-Scrapper 12695 | -6/Extension | Discovered new exit (range 10) 12696 | -6/Extension | Discovered new exit (range 6) 12784 | -6/Extension | Entered Cetus 12784 | -6/Cetus | Accompanied by 19 allies (A7) 12789 | -6/Cetus | Acquired a Cetus Manufacturing Module code from A7 12796 | -6/Cetus | Spotted Cetus Guard 12797 | -6/Cetus | Spotted Cetus Guard 12800 | -6/Cetus | Spotted Cetus Guard 12804 | -6/Cetus | Allies destroyed Cetus Guard 12807 | -6/Cetus | Spotted Cetus Guard 12812 | -6/Cetus | Destroyed Cetus Guard 12817 | -6/Cetus | Allies destroyed Cetus Guard 12819 | -6/Cetus | Destroyed Cetus Guard 12932 | -6/Cetus | Discovered new exit (range 15) 12955 | -6/Cetus | Spotted Cetus Guard 12955 | -6/Cetus | Spotted Cetus Guard 12959 | -6/Cetus | Spotted Cetus Guard 12959 | -6/Cetus | Spotted Cetus Guard 12969 | -6/Cetus | Destroyed Cetus Guard 12971 | -6/Cetus | Allies destroyed Cetus Guard 12975 | -6/Cetus | Allies destroyed Cetus Guard 12978 | -6/Cetus | Destroyed Cetus Guard 12980 | -6/Cetus | Discovered new exit (range 16) 12989 | -6/Cetus | Met Revision 17 13075 | -6/Cetus | Started Cetus Manufacturing Module 13100 | -6/Cetus | Manufactured an Enhanced Grunt 13125 | -6/Cetus | Manufactured an Enhanced Grunt 13150 | -6/Cetus | Manufactured an Enhanced Grunt 13175 | -6/Cetus | Manufactured an Enhanced Grunt 13200 | -6/Cetus | Manufactured an Enhanced Grunt 13324 | -6/Cetus | Murdered A7 13332 | -6/Cetus | Extracted ID and sensor layout for unrecognized location from A7's data core 13339 | -6/Cetus | Found Prototype Protection 13339 | -6/Cetus | Identified Med. Regenerative Plating 13411 | -6/Cetus | Entered Archives 13411 | -6/Archives | Accompanied by 19 allies 13457 | -6/Archives | Discovered new exit (range 13) 13473 | -6/Archives | Lost 3 allies 13490 | -6/Archives | Discovered new exit (range 16) 13509 | -6/Archives | Discovered new exit (range 16) 14036 | -6/Archives | Entered Hub_04(d) 14036 | -6/Hub_04(d) | Accompanied by 15 allies 14176 | -6/Hub_04(d) | Discovered new exit (range 16) 14257 | -6/Hub_04(d) | Discovered new exit (range 15) 14257 | -6/Hub_04(d) | Identified exit to Factory 14347 | -6/Hub_04(d) | Lost 5 allies 14599 | -6/Hub_04(d) | Build established: Scavenger-Scrapper 14628 | -6/Hub_04(d) | Garrison activated, responded to threat 14850 | -6/Hub_04(d) | Network Hub disabled 14857 | -6/Hub_04(d) | Network Hub disabled 14858 | -6/Hub_04(d) | Spotted Lightning 14858 | -6/Hub_04(d) | Spotted Lightning 14872 | -6/Hub_04(d) | Spotted Lightning 14880 | -6/Hub_04(d) | System corruption reached 10% 14903 | -6/Hub_04(d) | Spotted Lightning 14905 | -6/Hub_04(d) | Spotted Lightning 14907 | -6/Hub_04(d) | System corruption reached 30% 14907 | -6/Hub_04(d) | Spotted Lightning 14917 | -6/Hub_04(d) | Destroyed Lightning 14932 | -6/Hub_04(d) | Core integrity fell below 50% 14954 | -6/Hub_04(d) | Entered Factory 14954 | -5/Factory | Evolved 2 slots: Utility x2 14978 | -5/Factory | Lost 11 parts (2p2n4u3w) 15134 | -5/Factory | Core integrity fell below 50% 15159 | -5/Factory | Lost 5 parts (2n2u1w) 15175 | -5/Factory | Discovered new exit (range 5) 15449 | -5/Factory | Loaded intel: 8 recycling unit locations 15516 | -5/Factory | Scrapoid reinforcements arrived 15747 | -5/Factory | Discovered new exit (range 16) 15767 | -5/Factory | Identified exit to Factory 16066 | -5/Factory | Found Scrap Suit 16154 | -5/Factory | First assault squad dispatched 16179 | -5/Factory | Discovered new exit (range 7) 16209 | -5/Factory | Destroyed 8 combat bots 16254 | -5/Factory | Entered Upper Caves 16270 | -5/Upper Caves | Spotted B-75 Beast 16389 | -5/Upper Caves | Encountered a Warlord checkpoint 16564 | -5/Upper Caves | Attracted the attention of an 0b10 outpost 16592 | -5/Upper Caves | Discovered new exit (range 7) 16599 | -5/Upper Caves | Entered another Upper Caves area 16612 | -5/Upper Caves | Discovered exit to Factory (range 10) 16671 | -5/Upper Caves | Attracted the attention of an 0b10 checkpoint 16865 | -5/Upper Caves | Learned Research security intel 16865 | -5/Upper Caves | Learned Armory emergency access door positions 16937 | -5/Upper Caves | Discovered new exit (range 15) 17087 | -5/Upper Caves | Entered Zhirov 17087 | -5/Zhirov | Discovered new exit (range 3) 17107 | -5/Zhirov | Met Zhirov 17121 | -5/Zhirov | Learned location of Command (-1) 17129 | -5/Zhirov | Zhirov requested help retrieving the SGEMP Prototype 17149 | -5/Zhirov | Found Alien Artifact 17149 | -5/Zhirov | Identified Integrated Dissipator 17149 | -5/Zhirov | Installed Integrated Dissipator, increased core heat dissipation (+20) 17162 | -5/Zhirov | Found Alien Artifact 17221 | -5/Zhirov | Entered Proximity Caves 17348 | -4/Proximity Caves | Found Prototype Device 17348 | -4/Proximity Caves | Identified Exp. Phase Shifter 17357 | -4/Proximity Caves | Found Prototype Processor 17357 | -4/Proximity Caves | Identified Exp. Core Analyzer 17363 | -4/Proximity Caves | Found Prototype Hackware 17382 | -4/Proximity Caves | Identified Exp. System Shield 17385 | -4/Proximity Caves | Found Exp. Phase Shifter 17633 | -4/Proximity Caves | Entered Factory 17633 | -4/Factory | Evolved 2 slots: Utility x1, Weapon x1 17634 | -4/Factory | Identified exit to Upper Caves 17654 | -4/Factory | Loaded intel: 8 recycling unit locations 17996 | -4/Factory | Identified exit to Armory 18321 | -4/Factory | Entered Armory 18344 | -4/Armory | Lost 6 parts (1p2u3w) 18455 | -4/Armory | Energy Cycler disabled 18534 | -4/Armory | Found Prototype Processor 18534 | -4/Armory | Identified Exp. Targeting Computer 18538 | -4/Armory | Found Exp. Targeting Computer 18574 | -4/Armory | Fabricated Enh. Nova Cannon (x2) 18999 | -4/Armory | Build established: Gunner 19040 | -4/Armory | Identified Transdimensional Reconstructor 19040 | -4/Armory | Warped through subspace to slip node 19040 | -4/Armory | Discovered new exit (range 1) 19040 | -4/Armory | Identified exit to Lab 19115 | -4/Armory | Spotted Armor Guard 19117 | -4/Armory | Spotted Armor Guard 19126 | -4/Armory | Destroyed Armor Guard 19201 | -4/Armory | Destroyed Armor Guard 19240 | -4/Armory | Spotted B-86 Titan 19339 | -4/Armory | Destroyed B-86 Titan 19701 | -4/Armory | Entered Lab 19701 | -4/Lab | Discovered new exit (range 9) 19732 | -4/Lab | Hidden lab's door opened automatically 19732 | -4/Lab | Sensor layout match revealed 19733 | -4/Lab | Gained access to the hidden lab's interior 19796 | -4/Lab | Found Alien Artifact 19839 | -4/Lab | Found Alien Artifact 19839 | -4/Lab | Identified Integrated Reactor 19839 | -4/Lab | Installed Integrated Reactor, increased core energy generation (+10) 19844 | -4/Lab | Found Alien Artifact 19844 | -4/Lab | Identified Core Expander 19844 | -4/Lab | Installed Core Expander, added new Power slot 19868 | -4/Lab | Found Prototype Energy Cannon 19871 | -4/Lab | Found Prototype Energy Cannon 19874 | -4/Lab | Found Prototype Protection 19877 | -4/Lab | Found Prototype Hackware 19929 | -4/Lab | Identified Warp Cannon 19938 | -4/Lab | Identified Potential Cannon 19940 | -4/Lab | Identified Exp. Powered Armor 20078 | -4/Lab | Found Transdimensional Reconstructor 20136 | -4/Lab | Entered Research 20136 | -3/Research | Evolved 2 slots: Weapon x2 20138 | -3/Research | Loaded intel: 22 terminal locations 20154 | -3/Research | Identified Deep Network Scanner 20336 | -3/Research | Revision forces began assault on 0b10 20431 | -3/Research | Build established: Hacker-Executioner 20498 | -3/Research | Identified exit to Testing 20742 | -3/Research | Found Prototype Device 20836 | -3/Research | Research terminal network offline 21008 | -3/Research | Found Exp. Core Analyzer 21035 | -3/Research | Loaded intel: 5 recycling unit locations 21096 | -3/Research | Discovered new exit (range 15) 21196 | -3/Research | Spotted Striker 21203 | -3/Research | Spotted Striker 21207 | -3/Research | Destroyed Striker 21215 | -3/Research | Destroyed Striker 21338 | -3/Research | Spotted Striker 21340 | -3/Research | Spotted Striker 21344 | -3/Research | Destroyed Striker 21348 | -3/Research | Destroyed Striker 21392 | -3/Research | Entered Testing 21492 | -3/Testing | Identified Exp. Thermal Shield 21599 | -3/Testing | Spotted PL-4HANEGEYOD 21617 | -3/Testing | Destroyed PL-4HANEGEYOD 21762 | -3/Testing | Scanned by Researcher 22304 | -3/Testing | Found Prototype Energy Cannon 22304 | -3/Testing | Identified Null Cannon 22349 | -3/Testing | Discovered new exit (range 6) 22602 | -3/Testing | Found Prototype Ballistic Cannon 22602 | -3/Testing | Identified Omega Cannon 22621 | -3/Testing | Fabricated Exp. Optical Array? 22939 | -3/Testing | Entered Research 22939 | -2/Research | Evolved 2 slots: Weapon x2 23526 | -2/Research | Loaded intel: 5 recycling unit locations 23881 | -2/Research | Identified exit to Quarantine 24180 | -2/Research | Entered Quarantine 24208 | -2/Quarantine | Found Alien Impact Weapon 24530 | -2/Quarantine | Cryocooling Duct disabled 24532 | -2/Quarantine | Cryocooling Duct disabled 24545 | -2/Quarantine | Ambient heat levels rising (+20) 24545 | -2/Quarantine | Non-combat units ordered to evacuate 24547 | -2/Quarantine | Ambient heat levels rising (+20) 24547 | -2/Quarantine | Combat units ordered to evacuate 24603 | -2/Quarantine | Build established: Pyromaniac-Executioner 24647 | -2/Quarantine | Quarantine Guard activated 24668 | -2/Quarantine | Found Alien Slashing Weapon 24760 | -2/Quarantine | Spotted Quarantine Guard 24784 | -2/Quarantine | Destroyed Quarantine Guard 24799 | -2/Quarantine | Spotted Quarantine Guard 24811 | -2/Quarantine | Spotted Quarantine Guard 24829 | -2/Quarantine | Spotted Quarantine Guard 24837 | -2/Quarantine | Destroyed Quarantine Guard 24846 | -2/Quarantine | Destroyed Quarantine Guard 24884 | -2/Quarantine | Discovered new exit (range 15) 24884 | -2/Quarantine | Spotted Quarantine Guard 24891 | -2/Quarantine | Destroyed Quarantine Guard 24912 | -2/Quarantine | Identified exit to Access 24923 | -2/Quarantine | Spotted Quarantine Guard 24937 | -2/Quarantine | Destroyed Quarantine Guard 24942 | -2/Quarantine | Identified Sigix Broadsword 25213 | -2/Quarantine | Found Alien Artifact 25390 | -2/Quarantine | Build established: Assassin 25649 | -2/Quarantine | Found Alien Artifact 25649 | -2/Quarantine | Identified Dimensional Node Initializer 25649 | -2/Quarantine | Initialized slip node 25660 | -2/Quarantine | Found Dimensional Node Initializer 25672 | -2/Quarantine | Found Alien Artifact 25702 | -2/Quarantine | Spotted Quarantine Guard 25868 | -2/Quarantine | Spotted Fortress 25872 | -2/Quarantine | Destroyed Fortress 25919 | -2/Quarantine | Destroyed Quarantine Guard 25944 | -2/Quarantine | Found Prototype Reactor 25944 | -2/Quarantine | Identified Vortex Chain Reactor 25954 | -2/Quarantine | Found Prototype Device 25954 | -2/Quarantine | Identified Exp. Force Field 25959 | -2/Quarantine | Found Vortex Chain Reactor 26072 | -2/Quarantine | Discovered new exit (range 6) 26072 | -2/Quarantine | Discovered new exit (range 5) 26072 | -2/Quarantine | Spotted Quarantine Guard 26072 | -2/Quarantine | Spotted Quarantine Guard 26080 | -2/Quarantine | Identified exit to Protoforge 26082 | -2/Quarantine | Entered Protoforge 26389 | -2/Protoforge | Spotted Overlord 26394 | -2/Protoforge | Build established: Scavenger-Assassin 26657 | -2/Protoforge | Spotted Hotshot 26657 | -2/Protoforge | Spotted Hotshot 26671 | -2/Protoforge | Spotted Hotshot 26673 | -2/Protoforge | Spotted Hotshot 26681 | -2/Protoforge | Destroyed Hotshot 26701 | -2/Protoforge | Destroyed Hotshot 26897 | -2/Protoforge | Spotted Hotshot 26897 | -2/Protoforge | Spotted Hotshot 26926 | -2/Protoforge | Destroyed Hotshot 26939 | -2/Protoforge | Destroyed Hotshot 26980 | -2/Protoforge | System corruption reached 10% 27244 | -2/Protoforge | Initialized slip node 27362 | -2/Protoforge | Build established: Scavenger-Executioner 27483 | -2/Protoforge | Found Prototype Device 27649 | -2/Protoforge | Spotted Decapitator 27649 | -2/Protoforge | Spotted Decapitator 27649 | -2/Protoforge | Spotted Decapitator 27649 | -2/Protoforge | Spotted Decapitator 27842 | -2/Protoforge | Found Cep. Network Penetrator 27889 | -2/Protoforge | Superfortress began startup sequence 27901 | -2/Protoforge | System corruption reached 30% 27933 | -2/Protoforge | Spotted AP7-3 27938 | -2/Protoforge | Spotted AP7-3 27979 | -2/Protoforge | Destroyed AP7-3 27983 | -2/Protoforge | Destroyed AP7-3 28026 | -2/Protoforge | Found Cep. XC Strikerail 28046 | -2/Protoforge | Found Cep. Thermoelectric Network 28049 | -2/Protoforge | Found Cep. Cloak Mesh 28052 | -2/Protoforge | Found Cep. Impact Drone Bay 28057 | -2/Protoforge | Found Cep. Impact Drone Bay 28059 | -2/Protoforge | Found Cep. Thermoelectric Network 28068 | -2/Protoforge | Warped through subspace to slip node 28072 | -2/Protoforge | Found Cld. Directed Potential Cannon 28108 | -2/Protoforge | Spotted EXE-6 28108 | -2/Protoforge | Spotted EXE-6 28137 | -2/Protoforge | Destroyed EXE-6 28147 | -2/Protoforge | Destroyed EXE-6 28183 | -2/Protoforge | Found Prototype Processor 28183 | -2/Protoforge | Identified Exp. Armor Integrity Analyzer 28193 | -2/Protoforge | Identified Crosscalibrator 28199 | -2/Protoforge | Found Cep. XC Strikerail 28205 | -2/Protoforge | Found Cep. XC Strikerail 28261 | -2/Protoforge | UFD initiated attack on Protoforge 28261 | -2/Protoforge | Loaded intel: 3 recycling unit locations 28307 | -2/Protoforge | Optimus greeted in Protoforge 28307 | -2/Protoforge | Destroyed 02F05-K 28309 | -2/Protoforge | Spotted Decapitator 28310 | -2/Protoforge | Spotted Decapitator 28371 | -2/Protoforge | Lost 3 allies 28408 | -2/Protoforge | Destroyed 02F03-K 28418 | -2/Protoforge | Found Scrap Suit 28491 | -2/Protoforge | Spotted Striker 28493 | -2/Protoforge | Spotted Striker 28499 | -2/Protoforge | Destroyed Striker 28510 | -2/Protoforge | Spotted Striker 28514 | -2/Protoforge | Spotted Striker 28522 | -2/Protoforge | Destroyed Striker 28547 | -2/Protoforge | Lost 3 allies 28548 | -2/Protoforge | Destroyed 02F04-K 28559 | -2/Protoforge | Spotted Executioner 28560 | -2/Protoforge | Spotted Striker 28584 | -2/Protoforge | Found 0bPrime Scrap Suit 28585 | -2/Protoforge | Spotted Striker 28586 | -2/Protoforge | Spotted Striker 28593 | -2/Protoforge | Destroyed Striker 28598 | -2/Protoforge | Lost 3 allies 28624 | -2/Protoforge | Destroyed 02F07-K 28682 | -2/Protoforge | Spotted Striker 28686 | -2/Protoforge | Spotted Striker 28697 | -2/Protoforge | Destroyed Striker 28702 | -2/Protoforge | Destroyed 02F09-K 28722 | -2/Protoforge | Destroyed 02F08-K 28731 | -2/Protoforge | Lost 4 allies 28788 | -2/Protoforge | Destroyed 02F10-K 28840 | -2/Protoforge | Destroyed 02F11-K 28843 | -2/Protoforge | Destroyed 02F12-K 28857 | -2/Protoforge | Lost 9 allies 28870 | -2/Protoforge | Destroyed 02F13-K 28887 | -2/Protoforge | Build established: Scavenger-Scrapper 28915 | -2/Protoforge | Spotted Striker 28917 | -2/Protoforge | Spotted Striker 28977 | -2/Protoforge | Destroyed 02F14-K 28991 | -2/Protoforge | Destroyed 02F15-K 29009 | -2/Protoforge | Triborg destroyed during the operation 29009 | -2/Protoforge | Optimus emerged from Triborg 29055 | -2/Protoforge | Lost 14 allies 29092 | -2/Protoforge | Spotted Executioner 29094 | -2/Protoforge | Spotted Executioner 29101 | -2/Protoforge | Destroyed Executioner 29101 | -2/Protoforge | Destroyed Executioner 29152 | -2/Protoforge | Spotted Executioner 29176 | -2/Protoforge | Spotted Striker 29189 | -2/Protoforge | Spotted Executioner 29206 | -2/Protoforge | Destroyed Executioner 29238 | -2/Protoforge | Spotted Striker 29245 | -2/Protoforge | Spotted Executioner 29246 | -2/Protoforge | Destroyed Striker 29247 | -2/Protoforge | Spotted Immortal 29249 | -2/Protoforge | Spotted Striker 29249 | -2/Protoforge | Destroyed Striker 29254 | -2/Protoforge | Spotted Executioner 29254 | -2/Protoforge | Destroyed Immortal 29258 | -2/Protoforge | Destroyed Superfortress 29265 | -2/Protoforge | Destroyed Executioner 29266 | -2/Protoforge | Core integrity fell below 50% 29278 | -2/Protoforge | Destroyed Executioner 29299 | -2/Protoforge | Destroyed 9 combat bots 29313 | -2/Protoforge | Found Cep. Chromion Battery 29315 | -2/Protoforge | Found Prototype Power Core 29315 | -2/Protoforge | Identified Cep. Zero-point Core 29320 | -2/Protoforge | Found Cep. NT7 Matterbank 29322 | -2/Protoforge | Found Prototype Device 29322 | -2/Protoforge | Identified Cep. Antimissile System 29346 | -2/Protoforge | Spotted Executioner 29372 | -2/Protoforge | Lost 4 allies 29373 | -2/Protoforge | Spotted Executioner 29384 | -2/Protoforge | Destroyed Executioner 29385 | -2/Protoforge | Destroyed Executioner 29438 | -2/Protoforge | Spotted Executioner 29459 | -2/Protoforge | Spotted Striker 29459 | -2/Protoforge | Spotted Striker 29459 | -2/Protoforge | Spotted Executioner 29466 | -2/Protoforge | Destroyed Executioner 29468 | -2/Protoforge | Destroyed Executioner 29469 | -2/Protoforge | Destroyed Striker 29470 | -2/Protoforge | Destroyed Striker 29491 | -2/Protoforge | Destroyed 10 combat bots 29525 | -2/Protoforge | Found Prototype Device 29525 | -2/Protoforge | Identified Exp. Trap Extractor 29557 | -2/Protoforge | Found Prototype Device 29557 | -2/Protoforge | Identified Exp. System Purifier 29633 | -2/Protoforge | Found Prototype Device 29633 | -2/Protoforge | Identified Adv. Kinecellerator 29772 | -2/Protoforge | Destroyed 02F17-K 29810 | -2/Protoforge | Destroyed 02F30-K 29815 | -2/Protoforge | Destroyed 02F20-K 29822 | -2/Protoforge | Destroyed 02F29-K 29848 | -2/Protoforge | Murdered 3 allies 29971 | -2/Protoforge | Spotted Executioner 29972 | -2/Protoforge | Spotted Striker 29974 | -2/Protoforge | Destroyed Executioner 29977 | -2/Protoforge | Destroyed Striker 29986 | -2/Protoforge | Found Exp. Core Analyzer 30081 | -2/Protoforge | Destroyed 02F33-K 30099 | -2/Protoforge | Spotted Striker 30101 | -2/Protoforge | Spotted Striker 30106 | -2/Protoforge | Destroyed Striker 30115 | -2/Protoforge | Spotted Executioner 30116 | -2/Protoforge | Spotted Executioner 30122 | -2/Protoforge | Destroyed Executioner 30122 | -2/Protoforge | Destroyed Executioner 30143 | -2/Protoforge | Destroyed 7 combat bots 30148 | -2/Protoforge | Lost 7 allies 30183 | -2/Protoforge | Spotted Striker 30184 | -2/Protoforge | Spotted Striker 30185 | -2/Protoforge | Destroyed Striker 30186 | -2/Protoforge | Destroyed Striker 30207 | -2/Protoforge | Spotted Striker 30210 | -2/Protoforge | Spotted Striker 30214 | -2/Protoforge | Destroyed Striker 30267 | -2/Protoforge | Spotted Striker 30269 | -2/Protoforge | Destroyed Striker 30271 | -2/Protoforge | Spotted Striker 30290 | -2/Protoforge | Found Prototype Device 30290 | -2/Protoforge | Identified Cep. Recoil Nullifier 30292 | -2/Protoforge | Destroyed 11 combat bots 30327 | -2/Protoforge | Spotted Striker 30329 | -2/Protoforge | Spotted Executioner 30343 | -2/Protoforge | Destroyed Executioner 30353 | -2/Protoforge | Spotted Striker 30354 | -2/Protoforge | Allies destroyed Striker 30364 | -2/Protoforge | Destroyed 7 combat bots 30367 | -2/Protoforge | Lost 3 parts (1u2w) 30368 | -2/Protoforge | Found Cep. Recoil Nullifier 30374 | -2/Protoforge | Spotted Striker 30386 | -2/Protoforge | Allies destroyed Striker 30391 | -2/Protoforge | Allies destroyed Striker 30434 | -2/Protoforge | Spotted Striker 30441 | -2/Protoforge | Destroyed Striker 30475 | -2/Protoforge | Destroyed 02F35-K 30568 | -2/Protoforge | Found Exp. Core Analyzer 30608 | -2/Protoforge | UFD reported confirmed Drillbomb installation 30700 | -2/Protoforge | Destroyed 02F38-K 30715 | -2/Protoforge | Destroyed 02F39-K 30752 | -2/Protoforge | Spotted Striker 30778 | -2/Protoforge | Murdered 3 allies 30781 | -2/Protoforge | Destroyed 02F41-K 30791 | -2/Protoforge | Destroyed 02F40-K 30800 | -2/Protoforge | Destroyed 02F43-K 30803 | -2/Protoforge | P-80 Master assimilated allied 02FCV-D 30809 | -2/Protoforge | Spotted Striker 30810 | -2/Protoforge | Spotted Executioner 30826 | -2/Protoforge | Murdered 3 allies 30830 | -2/Protoforge | Lost 10 allies 30834 | -2/Protoforge | Found 0bPrime Scrap Suit 30850 | -2/Protoforge | Spotted Executioner 30885 | -2/Protoforge | Destroyed 02F42-K 30902 | -2/Protoforge | Destroyed 02F44-K 30903 | -2/Protoforge | Destroyed 02F45-K 30929 | -2/Protoforge | Murdered 3 allies 30934 | -2/Protoforge | Lost 4 allies 30968 | -2/Protoforge | Spotted Executioner 30972 | -2/Protoforge | Destroyed Executioner 30975 | -2/Protoforge | Spotted Executioner 30977 | -2/Protoforge | Destroyed Executioner 31022 | -2/Protoforge | Spotted Executioner 31027 | -2/Protoforge | Spotted Executioner 31028 | -2/Protoforge | Destroyed Executioner 31032 | -2/Protoforge | Destroyed Executioner 31112 | -2/Protoforge | Found Exp. System Purifier 31188 | -2/Protoforge | Spotted Decapitator 31188 | -2/Protoforge | Spotted V369-k 31198 | -2/Protoforge | Spotted Decapitator 31200 | -2/Protoforge | Destroyed Decapitator 31203 | -2/Protoforge | Destroyed Decapitator 31208 | -2/Protoforge | Destroyed V369-k 31242 | -2/Protoforge | Found Cep. Zero-point Core 31283 | -2/Protoforge | Forge Plexus network access discovered 31327 | -2/Protoforge | Spotted V265-u 31328 | -2/Protoforge | Spotted V223-r 31328 | -2/Protoforge | Spotted V269-j 31329 | -2/Protoforge | Spotted V288-l 31330 | -2/Protoforge | Found Cep. Antigrav Storage Unit 31372 | -2/Protoforge | Spotted Immortal 31372 | -2/Protoforge | Spotted Immortal 31373 | -2/Protoforge | Spotted Decapitator 31373 | -2/Protoforge | Spotted Decapitator 31373 | -2/Protoforge | Spotted Decapitator 31373 | -2/Protoforge | Spotted Decapitator 31378 | -2/Protoforge | Destroyed Immortal 31380 | -2/Protoforge | Destroyed Immortal 31385 | -2/Protoforge | Destroyed Decapitator 31385 | -2/Protoforge | Destroyed Decapitator 31387 | -2/Protoforge | Destroyed Decapitator 31397 | -2/Protoforge | Destroyed Decapitator 31415 | -2/Protoforge | UFD reported confirmed Drillbomb installation 31436 | -2/Protoforge | Found Cep. Hypertargeting System 31438 | -2/Protoforge | Destroyed 8 combat bots 31443 | -2/Protoforge | Found Cep. Networked Targeting System 31644 | -2/Protoforge | Spotted Executioner 31659 | -2/Protoforge | Destroyed Executioner 31660 | -2/Protoforge | Spotted Executioner 31668 | -2/Protoforge | Destroyed Executioner 31717 | -2/Protoforge | Spotted V721-o 31718 | -2/Protoforge | Spotted V963-h 31718 | -2/Protoforge | Spotted V887-s 31728 | -2/Protoforge | Identified Subatomic Replicator 31728 | -2/Protoforge | Used Subatomic Replicator to replicate Faulty Cep. Energy Mantle 31729 | -2/Protoforge | Found Faulty Cep. Energy Mantle 31818 | -2/Protoforge | Spotted Immortal 31818 | -2/Protoforge | Spotted Immortal 31823 | -2/Protoforge | Destroyed Immortal 31826 | -2/Protoforge | Destroyed Immortal 31826 | -2/Protoforge | Spotted V243-d 31829 | -2/Protoforge | Spotted V796-v 31831 | -2/Protoforge | Destroyed V796-v 31835 | -2/Protoforge | Found Cep. Plasma Driver 31835 | -2/Protoforge | Spotted V385-z 31837 | -2/Protoforge | Destroyed V385-z 31837 | -2/Protoforge | Core integrity fell below 20% 31840 | -2/Protoforge | Spotted V874-k 31841 | -2/Protoforge | Destroyed V243-d 31843 | -2/Protoforge | Destroyed V874-k 31846 | -2/Protoforge | Found Cep. Plasma Driver 31856 | -2/Protoforge | Found Prototype Ballistic Gun 31856 | -2/Protoforge | Identified Multirail 31869 | -2/Protoforge | Found Cep. XC Strikerail 31872 | -2/Protoforge | Lost 4 parts (4w) 31872 | -2/Protoforge | Found Faulty Cep. XC Strikerail 31875 | -2/Protoforge | Found Faulty Cep. XC Strikerail 31964 | -2/Protoforge | Found Exp. Active Sensor Suite 32025 | -2/Protoforge | Found Faulty Cep. Cloak Mesh 32030 | -2/Protoforge | Found Faulty Cep. Cloak Mesh 32032 | -2/Protoforge | Found Faulty Cep. Thermoelectric Network 32140 | -2/Protoforge | Additional patrols dispatched to research labs 32156 | -2/Protoforge | Found Transdimensional Reconstructor 32163 | -2/Protoforge | Found Cep. Navigation Harness 32373 | -2/Protoforge | Destroyed 02F67-K 32494 | -2/Protoforge | Attacked by UFD forces 32494 | -2/Protoforge | Spotted 02F71-K 32495 | -2/Protoforge | Identified Hpw. Transdimensional Reconstructor 32495 | -2/Protoforge | Warped through subspace 32495 | -2/Protoforge | Spotted 02F70-K 32495 | -2/Protoforge | Spotted 02F69-K 32502 | -2/Protoforge | Spotted Executioner 32503 | -2/Protoforge | Spotted Striker 32516 | -2/Protoforge | Destroyed Striker 32547 | -2/Protoforge | Lost 4 parts (4w) 32696 | -2/Protoforge | Discovered exit to Access (range 8) 32700 | -2/Protoforge | Spotted Hotshot 32701 | -2/Protoforge | Spotted Hotshot 32705 | -2/Protoforge | Entered Access 32705 | -1/Access | Evolved 2 slots: Utility x2 32881 | -1/Access | High security lockdown imminent 32955 | -1/Access | Spotted B-99 Colossus 32961 | -1/Access | High security lockdown engaged 33119 | -1/Access | Found Gamma Bomb Array 33201 | -1/Access | Spotted B-99 Colossus 33201 | -1/Access | Spotted B-99 Colossus 33248 | -1/Access | Build established: Scavenger-Assassin 33490 | -1/Access | Garrison activated, responded to threat 33535 | -1/Access | Assembled infested ambush trap array 33740 | -1/Access | Found Tactical Quantum Warhead 33802 | -1/Access | Door terminal overloaded 33802 | -1/Access | Discovered new exit (range 7) 33813 | -1/Access | Entered Command 33982 | -1/Command | Build established: Assassin 34063 | -1/Command | First assault squad dispatched 34105 | -1/Command | Spotted M Guard 34105 | -1/Command | Spotted M Guard 34108 | -1/Command | Spotted Combat Programmer 34109 | -1/Command | Spotted Combat Programmer 34127 | -1/Command | Destroyed Combat Programmer 34137 | -1/Command | Destroyed Combat Programmer 34151 | -1/Command | Spotted Executioner 34158 | -1/Command | Destroyed M Guard 34173 | -1/Command | Destroyed M Guard 34173 | -1/Command | All MAIN.C guards destroyed 34194 | -1/Command | Found Corrupted Prototype Device 34269 | -1/Command | Met MAIN.C 34275 | -1/Command | 0b10 Conduit disabled 34325 | -1/Command | Allies destroyed MAIN.C Shell 34328 | -1/Command | MAIN.C activated Command garrisons 34395 | -1/Command | Lost 5 allies 34426 | -1/Command | Destroyed MAIN.C 34466 | -1/Command | Identified AEGIS Remote Shield 34466 | -1/Command | Discovered new exit (range 35) 34466 | -1/Command | Discovered new exit (range 93) 34466 | -1/Command | Extracted map data and part IDs from MAIN.C's data core 34529 | -1/Command | Build established: Scavenger-Executioner 34930 | -1/Command | Build established: Executioner 35585 | -1/Command | Found Exp. System Purifier 35650 | -1/Command | Found Null Cannon 35657 | -1/Command | Found Vortex Chain Reactor 35691 | -1/Command | Found Vortex Chain Reactor 35747 | -1/Command | Found Hvy. Regenerative Plating 35771 | -1/Command | System corruption reached 10% 35944 | -1/Command | Found Hvy. Regenerative Plating 35949 | -1/Command | Found Adv. Kinecellerator 35952 | -1/Command | Found Exp. Phase Shifter 36674 | -1/Command | Found Multirail 36687 | -1/Command | Found Exp. Targeting Computer 37235 | -1/Command | Build established: Pyromaniac-Executioner 37875 | -1/Command | Found Exp. Core Analyzer 37911 | -1/Command | Found Exp. Core Analyzer 38326 | -1/Command | Found Exp. EM Shield 41751 | -1/Command | Warped through subspace to slip node 41751 | -1/Command | Discovered new exit (range 4) 41759 | -1/Command | Entered Access_0 41760 | -1/Access_0 | Met Architect 41766 | -1/Access_0 | Destroyed A8 41770 | -1/Access_0 | Architect warped through subspace 41815 | -1/Access_0 | Architect warped through subspace 41851 | -1/Access_0 | Architect warped through subspace 41883 | -1/Access_0 | Architect warped through subspace 41915 | -1/Access_0 | Architect warped through subspace 41947 | -1/Access_0 | Architect warped through subspace 41981 | -1/Access_0 | Architect warped through subspace 41992 | -1/Access_0 | Found Exp. Thermal Shield 42014 | -1/Access_0 | Architect warped through subspace 42047 | -1/Access_0 | Architect warped through subspace 42076 | -1/Access_0 | Architect warped through subspace 42107 | -1/Access_0 | Architect warped through subspace 42142 | -1/Access_0 | Architect warped through subspace 42172 | -1/Access_0 | Architect warped through subspace 42188 | -1/Access_0 | Found Exp. Powered Armor 42201 | -1/Access_0 | Architect warped through subspace 42232 | -1/Access_0 | Architect warped through subspace 42245 | -1/Access_0 | Found Prototype Device 42262 | -1/Access_0 | Architect warped through subspace 42289 | -1/Access_0 | Architect warped through subspace 42322 | -1/Access_0 | Architect warped through subspace 42349 | -1/Access_0 | Architect warped through subspace 42378 | -1/Access_0 | Architect warped through subspace 42382 | -1/Access_0 | Subspace Access Node disabled 42408 | -1/Access_0 | Architect warped through subspace 42444 | -1/Access_0 | Architect warped through subspace 42481 | -1/Access_0 | Architect warped through subspace 42483 | -1/Access_0 | Identified Desublimator 42511 | -1/Access_0 | Subspace Access Node disabled 42523 | -1/Access_0 | Architect warped through subspace 42529 | -1/Access_0 | A6 warped into view 42540 | -1/Access_0 | Destroyed A6 42557 | -1/Access_0 | Architect warped through subspace 42597 | -1/Access_0 | Build established: Scavenger-Executioner 42599 | -1/Access_0 | Architect warped through subspace 42627 | -1/Access_0 | Architect warped through subspace 42657 | -1/Access_0 | Architect warped through subspace 42682 | -1/Access_0 | Architect warped through subspace 42707 | -1/Access_0 | Architect warped through subspace 42727 | -1/Access_0 | Architect warped through subspace 42742 | -1/Access_0 | Architect warped through subspace 42757 | -1/Access_0 | Architect warped through subspace 42776 | -1/Access_0 | Architect warped through subspace 42813 | -1/Access_0 | Architect warped through subspace 42830 | -1/Access_0 | Architect warped through subspace 42859 | -1/Access_0 | Architect warped through subspace 42871 | -1/Access_0 | Architect warped through subspace 42882 | -1/Access_0 | Architect warped through subspace 42891 | -1/Access_0 | Architect warped through subspace 42901 | -1/Access_0 | Architect warped through subspace 42939 | -1/Access_0 | Destroyed A2 42951 | -1/Access_0 | Lost 3 parts (3w) 42955 | -1/Access_0 | Architect warped through subspace 42961 | -1/Access_0 | A5 warped into view 42984 | -1/Access_0 | Allies destroyed A5 43006 | -1/Access_0 | Subspace Access Node disabled 43010 | -1/Access_0 | Architect warped through subspace 43039 | -1/Access_0 | Subspace Access Node disabled 43091 | -1/Access_0 | Destroyed Architect 43092 | -1/Access_0 | Architect triggered a singularity event 43095 | -1/Access_0 | Released all parts (22) 43096 | -1/Access_0 | Extracted unknown sensor trigger ID from Architect's data core 43097 | -1/Access_0 | Found Hpw. Transdimensional Reconstructor 43097 | -1/Access_0 | Warped through subspace to slip node 43097 | -1/Access_0 | Discovered new exit (range 8) 43098 | -1/Access_0 | Core integrity fell below 50% 43101 | *** | Escaped singularity! Last Messages --------------- 43095_ Released Exp. Biometal Heavy Treads. 43095_ Released Enh. Nova Cannon. 43095_ Released Nova Cannon. 43095_ Released Graviton Cannon. 43095_ Released Hyp. Linear Accelerator. 43095_ Released Exp. Core Shielding. 43095_ Released Desublimator. 43095_ Released Cep. Recoil Nullifier. 43095_ Extracted 1 energy. 43095_ Acquired 40 matter. 43096_ A0_COM: 7. 43096_ Acquired data core, extracted unknown sensor trigger ID. 43097_ A0_COM: 6. 43097_ Acquired Hpw. Transdimensional Reconstructor. 43097_ Warped through subspace, drawn to slip node. 43097_ EXIT=FOUND 43098_ A0_COM: 5. 43099_ A0_COM: 4. 43100_ A0_COM: 3. 43101_ A0_COM: 2. Map ----- +----------------------------------------------------+ | | | | | | | | | | | | | | | | | | | | | | | | | | | | | | | | | ?????????????????????????????????????????????????? | | ?????????????????????????????????????????????????? | | ?????????????????????????????????????????????????? | | ?????????????????????????????????????????????????? | | ?????????????????????????????????????????????????? | | ?????????????????????????????????????????????????? | | ????????????????????????###??????????????????????? | | ???????????????????????## ##?????????????????????? | | ???????????????????????# #?????????????????????? | | ???????????????????????# @ #?????????????????????? | | ??????????????????????## #?????????????????????? | | ??????????????????????# #?????????????????????? | | ??????????????????????# ##?????????????????????? | | ??????????????????????## #?????????????????????? | | ??????????????????????# #?????????????????????? | | ??????????????????????# ##?????????????????????? | | ??????????????????????# < #?????????????????????? | | ??????????????????????# ##?????????????????????? | | ??????????????????????## #??????????????????????? | | ???????????????????????####??????????????????????? | | ?????????????????????????????????????????????????? | | ?????????????????????????????????????????????????? | | ?????????????????????????????????????????????????? | | ?????????????????????????????????????????????????? | | ?????????????????????????????????????????????????? | | ?????????????????????????????????????????????????? | | ?????????????????????????????????????????????????? | | ?????????????????????????????????????????????????? | | ?????????????????????????????????????????????????? | | ?????????????????????????????????????????????????? | | ?????????????????????????????????????????????????? | | ?????????????????????????????????????????????????? | | ?????????????????????????????????????????????????? | | ?????????????????????????????????????????????????? | +----------------------------------------------------+ Best States ------------- Heat Dissipation 159 Coolant Potential 120 Energy Generation 93 Energy Capacity 2820 Matter Stores 300 Matter Capacity 700 Sight Range 23 Robot Scan Range 20 Terrain Scan Range 24 Terrain Scan Density 10 Jamming Range 14 Cloak Strength 9 Base Temperature (-) 200 EM Shielding 2 Armor Coverage 1200 Resistance: KI 25 Resistance: TH 30 Core Shielding 40 Weapon Shielding 90 Point Defense Rating 480 Weapon Cycling 25 Phase Shifting 20 Evasion (%) 75 Targeting Accuracy 28 Target Analysis 8 Core Analysis 12 Armor Integrity Analysis 50 Recoil Reduction 103 Energy Filtering 50 Particle Charging 25 Kinecelleration 50 Salvage Targeting 4 Offensive Hacking 50 Defensive Hacking 48 Item Schematics ----------------- Assault Drone Bay | -5/Zhirov | Free Exp. Heat Sink | -5/Zhirov | Free Exp. Optical Array | -5/Zhirov | Free Imp. Arc Thrower | -5/Zhirov | Free Exp. Coolant Injector | -3/Testing | Archive Ionic Axe | -3/Testing | Archive Imp. Energy Well | -3/Testing | Archive Tiamat Missile Launcher | -3/Testing | Archive Shock Maul | -3/Testing | Archive Exp. ECM Suite | -3/Testing | Archive Molecular Scythe | -3/Testing | Archive Electron Diverter | -3/Testing | Archive Cld. Field Propulsion Drive | -3/Testing | Archive Spectral Analyzer | -2/Quarantine | Archive Imp. Thermal Defense Suite | -2/Quarantine | Archive Lrn. Phase Cannon | -2/Quarantine | Archive Tactical Quantum Warhead | -2/Quarantine | Archive Lgt. Antimatter Cannon | -2/Protoforge | Archive Cld. Linear Gravjet | -2/Protoforge | Archive Imp. Matter Neutralizer | -2/Protoforge | Archive Hvy. Wave Gun | -2/Protoforge | Archive Adv. Dynamic Insulation System | -2/Protoforge | Archive Exp. Flexi-carbon Leg | -2/Protoforge | Archive Cld. Nuclear Pulse Thruster | -2/Protoforge | Archive Enh. Multireflex Exoskeleton | -2/Protoforge | Archive Exp. Cooling System | -2/Protoforge | Archive Prc. Matter Filter | -2/Protoforge | Archive Hds. Centrium Leg | -2/Protoforge | Archive Cld. Phase Cannon | -2/Protoforge | Archive Robot Schematics ------------------ S-43 Plague | -3/Testing | Archive W-44 Eye | -3/Testing | Archive R-10 Processor | -2/Quarantine | Archive A-27 Freighter | -2/Protoforge | Archive E-15 Imp | -2/Protoforge | Archive B-74 Champion | -2/Protoforge | Archive T-07 Excavator | -2/Protoforge | Archive C-55 Analyst | -2/Protoforge | Archive P-80 Master | -2/Protoforge | Archive K-01 Serf | -2/Protoforge | Archive Fabricated ------------ Enh. Nova Cannon | x2 | -4/Armory | Preloaded Exp. Optical Array | x1 | -3/Testing Repaired ---------- Lgt. Antimatter Reactor | 5% | -6/Factory Alien Tech Used ----------------- Integrated Dissipator Transdimensional Reconstructor Integrated Reactor Core Expander Sigix Broadsword Dimensional Node Initializer Subatomic Replicator High-powered Transdimensional Reconstructor Achievements -------------- None Challenges ------------ None Game ------ Seed AutogunProtonHumpback Manual? 0 Play Time 07:54:26 Cumulative 737.2 hours Start 2025.05.15 @ 21:56:03 End 2025.05.16 @ 23:03:02 Sessions 5 Manual Loads 0 Difficulty Rogue Special Mode None Game No. 242 Rogue 240 Adventurer 2 Explorer 0 Win Type 6 Total 42 Types 14/5/11/1/1/0/8/1/0/1 Lore% 95 Gallery% 92 Achievement% 82 Wizard Run 0 Options --------- Layout 0 ASCII 0 Keyboard 0 Movement Numpad Keybinds 0 Fullscreen 1 Font 24/Smallcaps Map View 76x50 Zoom Use 0% Tactical HUD 1 Map Filters NONE Filters NONE Steam 1 RUN: abdb29f9-8c5c-4c45-b20b-10f115d2ff66